{"text_format":"1","workbook":"xlsx","n_sheets":20,"sheets":["RANKING 2016","CAMPEONES 2016","SUPER CHASQUI","EQUIPOS","ELITE ABIERTA","ELITE JUVENIL","ELITE MENORES","ELITE CABALLOS","AMATEUR ABIERTA","AMATEUR JUVENIL","AMATEUR MENORES","CABALLOS NOVICIOS","BINOMIOS ABIERTA","BINOMIOS LIVIANOS","PR MASTER","PR ABIERTA","PR JUVENIL","PR MENORES","PR INFANTIL","PR ADULTO-MENOR"],"not_rendered":{"charts":0,"images":0,"macros":1,"external_links":0,"defined_names":137,"comments":0,"pivot_tables":0},"unopened":[],"bounds":{"document_bytes":16777216,"sheet_cells":100000,"rows_first":2000,"rows_last":500,"rows_between":2000,"halvings":0,"cell_chars":16384,"cell_head_chars":4096},"cells_cut":0,"cells_raw":0,"read":"whole","date_system":"1900"}

{"sheet":"RANKING 2016","index":0,"n_rows":123,"n_cols":11,"rows_kept":123,"cut":false,"hidden":false,"merged":[[116,0,116,3],[3,5,3,10],[2,0,2,10],[0,0,0,10],[108,0,108,3],[36,0,36,4],[8,0,8,3],[16,0,16,3],[28,0,28,4],[68,0,68,3],[76,0,76,4],[52,0,52,3],[60,0,60,3],[24,0,24,3],[44,0,44,4],[84,0,84,3],[92,0,92,3],[100,0,100,3]]}
["                                                  RANKING NACIONAL DE ENDURANCE ECUADOR 2015"]
[]
["CAMPEONATO DE EQUIPOS                                        "]
[null,null,"EQUIPO","CAPITAN","PUNTAJE","               JINETES"]
[1,"CAMPEÓN NACIONAL",{"$f":"+EQUIPOS!C8","v":"ENDURANCE AZUAY"},{"$f":"+EQUIPOS!D8","v":"MARIA CONSUELO VELEZ "},{"$f":"+EQUIPOS!U8","v":2793.55},{"$f":"+EQUIPOS!E8","v":"PABLO VINTIMILLA"},{"$f":"+EQUIPOS!F8","v":"BERNARDA GONZALEZ"},{"$f":"+EQUIPOS!G8","v":"CLAUDIA LOYOLA"},{"$f":"+EQUIPOS!H8","v":"HECTOR ALMEIDA"},{"$f":"+EQUIPOS!I8","v":"JAIME BURBANO"},{"$f":"+EQUIPOS!J8","v":"MARIA CONSUELO VELEZ "}]
[2,"VICECAMPEÓN NACIONAL",{"$f":"+EQUIPOS!C9","v":"HACIENDA HATO VERDE"},{"$f":"+EQUIPOS!D9","v":"CESAR MORABOWEN AGUIRRE "},{"$f":"+EQUIPOS!U9","v":2246.8000000000002},{"$f":"+EQUIPOS!E9","v":"CESAR MORABOWEN MOSQUERA"},{"$f":"+EQUIPOS!F9","v":"JUAN ANTONIO LEON"},{"$f":"+EQUIPOS!G9","v":"JORGE DAVALOS"},{"$f":"+EQUIPOS!H9","v":"FABRICIO RAMIREZ"},{"$f":"+EQUIPOS!I9","v":"CESAR MORABOWEN AGUIRRE "},{"$f":"+EQUIPOS!J9","v":"MAHNKE LIESEL"}]
[3,null,{"$f":"+EQUIPOS!C10","v":"CACHAFAZ-SAN ALFONZO"},{"$f":"+EQUIPOS!D10","v":"ARTURO RIBADENEIRA "},{"$f":"+EQUIPOS!U10","v":824.07999999999993},{"$f":"+EQUIPOS!E10","v":"JOAQUINA DAVALOS"},{"$f":"+EQUIPOS!F10","v":"FRANCISCO FALCONÍ"},{"$f":"+EQUIPOS!G10","v":"FELIPE PORTILLA"},{"$f":"+EQUIPOS!H10","v":"JOSÉ ANDRADE"},{"$f":"+EQUIPOS!I10","v":"SOFÍA RIVADENEIRA"},{"$f":"+EQUIPOS!J10","v":"ARTURO RIBADENEIRA "}]
[]
["CATEGORÍA ELITE ABIERTA        "]
[null,null,"JINETE","PUNTAJE"]
[1,"CAMPEÓN NACIONAL",{"$f":"+'ELITE ABIERTA'!D8","v":"ALMEIDA AYALA HECTOR"},{"$f":"+'ELITE ABIERTA'!O8","v":760.34}]
[2,"VICECAMPEÓN NACIONAL",{"$f":"+'ELITE ABIERTA'!D9","v":"MORABOWEN CESAR"},{"$f":"+'ELITE ABIERTA'!O9","v":673.48}]
[3,null,{"$f":"+'ELITE ABIERTA'!D10","v":"WEEMAELS NATHALIE"},{"$f":"+'ELITE ABIERTA'!O10","v":644.79999999999995}]
[4,null,{"$f":"+'ELITE ABIERTA'!D11","v":"VINTIMILLA PABLO"},{"$f":"+'ELITE ABIERTA'!O11","v":604.56999999999994}]
[5,null,{"$f":"+'ELITE ABIERTA'!D12","v":"VELEZ MARIA CONSUELO"},{"$f":"+'ELITE ABIERTA'!O12","v":495.04}]
[]
["CATEGORÍA ELITE JUVENIL       "]
[null,null,"JINETE","PUNTAJE"]
[1,"CAMPEÓN NACIONAL",{"$f":"+'ELITE JUVENIL'!D8","v":"GONZALEZ BERNARDA"},{"$f":"+'ELITE JUVENIL'!O8","v":1053.18}]
[2,"VICECAMPEÓN NACIONAL",{"$f":"+'ELITE JUVENIL'!D9","v":"ANDRADE JOSE DANIEL"},{"$f":"+'ELITE JUVENIL'!O9","v":686.4}]
[3,null,{"$f":"+'ELITE JUVENIL'!D10","v":"LOYOLA CLAUDIA MARIA"},{"$f":"+'ELITE JUVENIL'!O10","v":654.4}]
[4,null,{"$f":"+'ELITE JUVENIL'!D11","v":"LOYOLA TEODORO ANDRES"},{"$f":"+'ELITE JUVENIL'!O11","v":438.70000000000005}]
[5,null,{"$f":"+'ELITE JUVENIL'!D12","v":"LETORT BERNARDA"},{"$f":"+'ELITE JUVENIL'!O12","v":366}]
[]
["CATEGORÍA ELITE MENORES"]
[null,null,"JINETE","PUNTAJE"]
[1,"CAMPEÓN NACIONAL",{"$f":"+'ELITE MENORES'!D8","v":"MORABOWEN MOSQUERA CESAR"},{"$f":"+'ELITE MENORES'!O8","v":829.12}]
[]
["CATEGORÍA ELITE CABALLOS     "]
[null,null,"JINETE","JINETE/DUEÑO","PUNTAJE"]
[1,"CAMPEÓN NACIONAL",{"$f":"+'ELITE CABALLOS'!D8","v":"AVENTURERO"},{"$f":"+'ELITE CABALLOS'!E8","v":"HECTOR ALMEIDA AYALA"},{"$f":"+'ELITE CABALLOS'!P8","v":470.1}]
[2,"VICECAMPEÓN NACIONAL",{"$f":"+'ELITE CABALLOS'!D9","v":"ANGOSTURA FRODO"},{"$f":"+'ELITE CABALLOS'!E9","v":"ARTURO RIBADENEIRA"},{"$f":"+'ELITE CABALLOS'!P9","v":454.4}]
[3,null,{"$f":"+'ELITE CABALLOS'!D10","v":"CALEÑA CMB"},{"$f":"+'ELITE CABALLOS'!E10","v":"MORABOWEN CESAR"},{"$f":"+'ELITE CABALLOS'!P10","v":452.31999999999994}]
[4,null,{"$f":"+'ELITE CABALLOS'!D11","v":"POLACO"},{"$f":"+'ELITE CABALLOS'!E11","v":"GONZALEZ BERNARDA"},{"$f":"+'ELITE CABALLOS'!P11","v":448.4}]
[5,null,{"$f":"+'ELITE CABALLOS'!D12","v":"BIANCA"},{"$f":"+'ELITE CABALLOS'!E12","v":"VINTIMILLA PABLO"},{"$f":"+'ELITE CABALLOS'!P12","v":442.56999999999994}]
[]
["CATEGORÍA BINOMIOS  ABIERTA"]
[null,null,"JINETE","CABALLO","PUNTAJE"]
[1,"CAMPEÓN NACIONAL",{"$f":"+'BINOMIOS ABIERTA'!D8","v":"ALMEIDA AYALA HECTOR"},{"$f":"+'BINOMIOS ABIERTA'!F8","v":"AVENTURERO"},{"$f":"+'BINOMIOS ABIERTA'!Q8","v":470.1}]
[2,"VICECAMPEÓN NACIONAL",{"$f":"+'BINOMIOS ABIERTA'!D9","v":"VINTIMILLA PABLO "},{"$f":"+'BINOMIOS ABIERTA'!F9","v":"BIANCA"},{"$f":"+'BINOMIOS ABIERTA'!Q9","v":442.56999999999994}]
[3,null,{"$f":"+'BINOMIOS ABIERTA'!D10","v":"MORABOWEN CESAR"},{"$f":"+'BINOMIOS ABIERTA'!F10","v":"SERENATA CMB"},{"$f":"+'BINOMIOS ABIERTA'!Q10","v":421.88}]
[4,null,{"$f":"+'BINOMIOS ABIERTA'!D11","v":"BURBANO VILLAVICENCIO JAIME"},{"$f":"+'BINOMIOS ABIERTA'!F11","v":"NEGRO EG"},{"$f":"+'BINOMIOS ABIERTA'!Q11","v":416.29999999999995}]
[5,null,{"$f":"+'BINOMIOS ABIERTA'!D12","v":"MOYA MIGUEL ANGEL"},{"$f":"+'BINOMIOS ABIERTA'!F12","v":"DIAMANTE"},{"$f":"+'BINOMIOS ABIERTA'!Q12","v":398.4}]
[]
["CATEGORÍA BINOMIOS LIVIANOS"]
[null,null,"JINETE","CABALLO","PUNTAJE"]
[1,"CAMPEÓN NACIONAL",{"$f":"+'BINOMIOS LIVIANOS'!D8","v":"MORABOWEN MOSQUERA CESAR"},{"$f":"+'BINOMIOS LIVIANOS'!F8","v":"CALEÑA CMB"},{"$f":"+'BINOMIOS LIVIANOS'!Q8","v":580.31999999999994}]
[2,"VICECAMPEÓN NACIONAL",{"$f":"+'BINOMIOS LIVIANOS'!D9","v":"GONZALEZ BERNARDA"},{"$f":"+'BINOMIOS LIVIANOS'!F9","v":"KADIN"},{"$f":"+'BINOMIOS LIVIANOS'!Q9","v":480}]
[3,null,{"$f":"+'BINOMIOS LIVIANOS'!D10","v":"GONZALEZ BERNARDA"},{"$f":"+'BINOMIOS LIVIANOS'!F10","v":"POLACO"},{"$f":"+'BINOMIOS LIVIANOS'!Q10","v":420.8}]
[4,null,{"$f":"+'BINOMIOS LIVIANOS'!D11","v":"LOYOLA CLAUDIA MARIA"},{"$f":"+'BINOMIOS LIVIANOS'!F11","v":"KALA"},{"$f":"+'BINOMIOS LIVIANOS'!Q11","v":412.4}]
[5,null,{"$f":"+'BINOMIOS LIVIANOS'!D12","v":"ANDRADE JOSE DANIEL"},{"$f":"+'BINOMIOS LIVIANOS'!F12","v":"ANGOSTURA FRODO"},{"$f":"+'BINOMIOS LIVIANOS'!Q12","v":320}]
[]
["CATEGORÍA AMATEUR ABIERTA        "]
[null,null,"JINETE","PUNTAJE"]
[1,"CAMPEÓN NACIONAL",{"$f":"+'AMATEUR ABIERTA'!D8","v":"CANGAS GUILLERMO"},{"$f":"+'AMATEUR ABIERTA'!O8","v":391.20000000000005}]
[2,"VICECAMPEÓN NACIONAL",{"$f":"+'AMATEUR ABIERTA'!D9","v":"FALCONI FRANCISCO"},{"$f":"+'AMATEUR ABIERTA'!O9","v":327.36000000000007}]
[3,null,{"$f":"+'AMATEUR ABIERTA'!D10","v":"MANCHENO PAMELA"},{"$f":"+'AMATEUR ABIERTA'!O10","v":263.20000000000005}]
[4,null,{"$f":"+'AMATEUR ABIERTA'!D11","v":"MALO ANDREA"},{"$f":"+'AMATEUR ABIERTA'!O11","v":192}]
[5,null,{"$f":"+'AMATEUR ABIERTA'!D12","v":"ALLAICO JOSE EMILIO"},{"$f":"+'AMATEUR ABIERTA'!O12","v":140.80000000000001}]
[]
["CATEGORÍA AMATEUR JUVENIL"]
[null,null,"JINETE","PUNTAJE"]
[1,"CAMPEÓN NACIONAL",{"$f":"+'AMATEUR JUVENIL'!D8","v":"MAZAPANTA LUIS"},{"$f":"+'AMATEUR JUVENIL'!O8","v":198.56}]
[2,"VICECAMPEÓN NACIONAL",{"$f":"+'AMATEUR JUVENIL'!D9","v":"DARQUEA ANA MARIA"},{"$f":"+'AMATEUR JUVENIL'!O9","v":194.24}]
[3,null,{"$f":"+'AMATEUR JUVENIL'!D10","v":"JARAMILLO MANUELA"},{"$f":"+'AMATEUR JUVENIL'!O10","v":130.24}]
[4,null,{"$f":"+'AMATEUR JUVENIL'!D11","v":"MAZAPANTA KEVIN"},{"$f":"+'AMATEUR JUVENIL'!O11","v":130.24}]
[5,null,{"$f":"+'AMATEUR JUVENIL'!D12","v":"BERREZUETA PABLO SANTIAGO"},{"$f":"+'AMATEUR JUVENIL'!O12","v":80}]
[]
["CATEGORÍA AMATEUR MENORES     "]
[null,null,"JINETE","PUNTAJE"]
[1,"CAMPEÓN NACIONAL",{"$f":"+'AMATEUR MENORES'!D8","v":"DAVALOS JORGE"},{"$f":"+'AMATEUR MENORES'!O8","v":397.2}]
[2,"VICECAMPEÓN NACIONAL",{"$f":"+'AMATEUR MENORES'!D9","v":0},{"$f":"+'AMATEUR MENORES'!O9","v":0}]
[3,null,{"$f":"+'AMATEUR MENORES'!D10","v":0},{"$f":"+'AMATEUR MENORES'!O10","v":0}]
[4,null,{"$f":"+'AMATEUR MENORES'!D11","v":0},{"$f":"+'AMATEUR MENORES'!O11","v":0}]
[5,null,{"$f":"+'AMATEUR MENORES'!D12","v":0},{"$f":"+'AMATEUR MENORES'!O12","v":0}]
[]
["CATEGORÍA NOVICIOS CABALLOS      "]
[null,null,"JINETE","JINETE/DUEÑO","PUNTAJE"]
[1,"CAMPEÓN NACIONAL",{"$f":"+'CABALLOS NOVICIOS'!D8","v":"CARAMELO CMB"},"ESPINOZA JUAN SEBASTIAN",{"$f":"+'CABALLOS NOVICIOS'!P8","v":333.2}]
[2,"VICECAMPEÓN NACIONAL",{"$f":"+'CABALLOS NOVICIOS'!D9","v":"SANTOO"},"SERRANO ARMANDO",{"$f":"+'CABALLOS NOVICIOS'!P9","v":332.8}]
[3,null,{"$f":"+'CABALLOS NOVICIOS'!D10","v":"MANDI CMB"},"SAMPER ALVARO",{"$f":"+'CABALLOS NOVICIOS'!P10","v":327.20000000000005}]
[4,null,{"$f":"+'CABALLOS NOVICIOS'!D11","v":"WOODY"},"ULLOA GORDON FERNANDO",{"$f":"+'CABALLOS NOVICIOS'!P11","v":322.24}]
[5,null,{"$f":"+'CABALLOS NOVICIOS'!D12","v":"AISHA"},"RIBADENEIRA ARTURO",{"$f":"+'CABALLOS NOVICIOS'!P12","v":291.44}]
[]
["CATEGORÍA PROMOCIONAL ABIERTA"]
[null,null,"JINETE","PUNTAJE"]
[1,"CAMPEÓN NACIONAL",{"$f":"+'PR ABIERTA'!D8","v":"ESTRADA CARLOS"},{"$f":"+'PR ABIERTA'!O8","v":169.92000000000002}]
[2,"VICECAMPEÓN NACIONAL",{"$f":"+'PR ABIERTA'!D9","v":"MONCAYO FERNANDO"},{"$f":"+'PR ABIERTA'!O9","v":123.536}]
[3,null,{"$f":"+'PR ABIERTA'!D10","v":"ORTIZ FERNANDO"},{"$f":"+'PR ABIERTA'!O10","v":68.960000000000008}]
[4,null,{"$f":"+'PR ABIERTA'!D11","v":"HIDALGO GUSTAVO"},{"$f":"+'PR ABIERTA'!O11","v":65.512}]
[5,null,{"$f":"+'PR ABIERTA'!D12","v":"MARIO ROSAS"},{"$f":"+'PR ABIERTA'!O12","v":65.36}]
[]
["CATEGORÍA PROMOCIONAL JUVENIL"]
[null,null,"JINETE","PUNTAJE"]
[1,"CAMPEÓN NACIONAL",{"$f":"+'PR JUVENIL'!D8","v":"NOROÑA JORDAN"},{"$f":"+'PR JUVENIL'!O8","v":68.8}]
[2,"VICECAMPEÓN NACIONAL",{"$f":"+'PR JUVENIL'!D9","v":"GABRIEL DARQUEA"},{"$f":"+'PR JUVENIL'!O9","v":68.8}]
[3,null,{"$f":"+'PR JUVENIL'!D10","v":"BARBARA ESPINOZA"},{"$f":"+'PR JUVENIL'!O10","v":65.36}]
[4,null,{"$f":"+'PR JUVENIL'!D11","v":"JHON CANDELEJO"},{"$f":"+'PR JUVENIL'!O11","v":32}]
[5,null,{"$f":"+'PR JUVENIL'!D12","v":0},{"$f":"+'PR JUVENIL'!O12","v":0}]
[]
["CATEGORÍA PROMOCIONAL MENORES"]
[null,null,"JINETE","PUNTAJE"]
[1,"CAMPEÓN NACIONAL",{"$f":"+'PR MENORES'!D8","v":"CORREA JUAN MARTIN"},{"$f":"+'PR MENORES'!O8","v":60.8}]
[2,"VICECAMPEÓN NACIONAL",{"$f":"+'PR MENORES'!D9","v":"ESPINOZA NATALIA"},{"$f":"+'PR MENORES'!O9","v":58.176000000000002}]
[3,null,{"$f":"+'PR MENORES'!D10","v":"CASTILLO DAFNE"},{"$f":"+'PR MENORES'!O10","v":32}]
[4]
[5]
[]
["CATEGORÍA PROMOCIONAL INFANTIL"]
[null,null,"JINETE","PUNTAJE"]
[1,"CAMPEÓN NACIONAL",{"$f":"+'PR INFANTIL'!D8","v":0},{"$f":"+'PR INFANTIL'!O8","v":0}]
[2,"VICECAMPEÓN NACIONAL",{"$f":"+'PR INFANTIL'!D9","v":0},{"$f":"+'PR INFANTIL'!O9","v":0}]
[3,null,{"$f":"+'PR INFANTIL'!D10","v":0},{"$f":"+'PR INFANTIL'!O10","v":0}]
[4,null,{"$f":"+'PR INFANTIL'!D11","v":0},{"$f":"+'PR INFANTIL'!O11","v":0}]
[5]
[]
["CATEGORÍA PROMOCIONAL ADULTO/MENOR"]
[null,null,"MENOR","PUNTAJE"]
[1,"CAMPEÓN NACIONAL",{"$f":"+'PR ADULTO-MENOR'!C8","v":"CASTILLO DAFNE"},{"$f":"+'PR ADULTO-MENOR'!O8","v":64.64}]
[2,"VICECAMPEÓN NACIONAL",{"$f":"+'PR ADULTO-MENOR'!C9","v":"SERRANO OLIVIA"},{"$f":"+'PR ADULTO-MENOR'!O9","v":63.183999999999997}]
[3,null,{"$f":"+'PR ADULTO-MENOR'!C10","v":"JARA RAFAELA"},{"$f":"+'PR ADULTO-MENOR'!O10","v":32.32}]
[4,null,{"$f":"+'PR ADULTO-MENOR'!C11","v":"MOYA MARTINA"},{"$f":"+'PR ADULTO-MENOR'!O11","v":32}]
[5,null,{"$f":"+'PR ADULTO-MENOR'!C12","v":"CORREA DAVID"},{"$f":"+'PR ADULTO-MENOR'!O12","v":29.231999999999999}]

{"sheet":"CAMPEONES 2016","index":1,"n_rows":51,"n_cols":5,"rows_kept":51,"cut":false,"hidden":false,"merged":[[1,1,1,4],[3,1,3,4],[40,1,40,4],[46,1,46,4],[10,1,10,4],[16,1,16,4],[22,1,22,4],[28,1,28,4],[34,1,34,4]]}
[]
[null,"CAMPEONATO ECUATORIANO DE ENDURANCE"]
[]
[null,"CATEGORÍA ELITE ABIERTA  CHASQUI 3"]
[null,null,null,"JINETE","CABALLO"]
[null,1,"CAMPEÓN NACIONAL","ALLAICO EMILIO","ASRAEL"]
[null,2,"VICECAMPEÓN NACIONAL","ALMEIDA HECTOR","AVENTURERO"]
[null,3,null,"DAVIS JAQUELINE","BONBON"]
[null,4,null,"MORABOWEN CESAR","SERENATA CMB"]
[]
[null,"CATEGORÍA ELITE JUVENIL  CHASQUI 3"]
[null,null,null,"JINETE","CABALLO"]
[null,1,"CAMPEÓN NACIONAL","GONZALEZ BERNARDA","KADIN"]
[null,2,"VICECAMPEÓN NACIONAL"]
[null,3]
[]
[null,"CATEGORÍA ELITE ABIERTA  CHASQUI 2"]
[null,null,null,"JINETE","CABALLO"]
[null,1,"CAMPEÓN NACIONAL","WEEMAELS NATHALIE","RO EVITA"]
[null,2,"VICECAMPEÓN NACIONAL","BURBANO JAIME SEBASTIAN","NEGRO EG"]
[null,3,null,"RAMIREZ FABRICIO","BULERIA CMB"]
[]
[null,"CATEGORÍA ELITE JUVENIL  CHASQUI 2"]
[null,null,null,"JINETE","CABALLO"]
[null,1,"CAMPEÓN NACIONAL","LOYOLA MARIA CLAUDIA","PATACON"]
[null,2,"VICECAMPEÓN NACIONAL","LOYOLA TEODORO","EL PADRINO"]
[null,3]
[]
[null,"CATEGORÍA ELITE JUVENIL  CHASQUI 2"]
[null,null,null,"JINETE","CABALLO"]
[null,1,"CAMPEÓN NACIONAL","MORABOWEN MOSQUERA CESAR","CALEÑA CMB"]
[null,2,"VICECAMPEÓN NACIONAL"]
[null,3]
[]
[null,"CATEGORÍA MENORES  CHASQUI 1"]
[null,null,null,"JINETE","CABALLO"]
[null,1,"CAMPEÓN NACIONAL","DAVALOS JORGE","CARAMELO CMB"]
[null,2,"VICECAMPEÓN NACIONAL"]
[null,3]
[]
[null,"CATEGORÍA  ABIERTA  CHASQUI 1"]
[null,null,null,"JINETE","CABALLO"]
[null,1,"CAMPEÓN NACIONAL"]
[null,2,"VICECAMPEÓN NACIONAL"]
[null,3]
[]
[null,"CATEGORÍA JUVENIL  CHASQUI 1"]
[null,null,null,"JINETE","CABALLO"]
[null,1,"CAMPEÓN NACIONAL"]
[null,2,"VICECAMPEÓN NACIONAL"]
[null,3]

{"sheet":"SUPER CHASQUI","index":2,"n_rows":115,"n_cols":5,"rows_kept":115,"cut":false,"hidden":false,"merged":[[1,2,1,4],[43,1,43,3],[49,1,49,3],[72,1,72,4],[100,1,100,4],[3,1,3,3],[9,1,9,3],[15,1,15,3],[21,1,21,3],[37,1,37,4]]}
[]
[null,null,"PREMIO SUPER CHASQUI DE ENDURANCE"]
[]
[null,"SUPER CHASQUI 3 JINETES"]
[null,null,"JINETE"]
[null,1,"ALMEIDA AYALA HECTOR",3117]
[null,2]
[null,3]
[]
[null,"SUPER CHASQUI 3 CABALLOS"]
[null,null,"JINETE","CABALLO"]
[null,1]
[null,2]
[null,3]
[]
[null,"SUPER CHASQUI 3 BINOMIOS"]
[null,null,"JINETE","CABALLO"]
[null,1]
[null,2]
[null,3]
[]
[null,"SUPER CHASQUI 2 JINETES (2000 Km)"]
[null,null,"JINETE","KILOMETRAJE"]
[null,null,"RIBADENEIRA SOFIA",2967]
[null,null,"ANDRADE JOSE DANIEL",2772]
[null,null,"WEEMAELS NATHALIE",2729]
[null,null,"GONZALEZ BERNARDA",2462]
[null,null,"LETORT DUEÑAS BERNARDA",2335]
[null,null,"RECALDE JUAN JOSE",2128]
[null,null,"NEUMANN KARINA",2108]
[null,null,"MORILLO MAURICIO",2032]
[null,null,"RIBADENEIRA ARTURO",2030]
[null,null,"GOMEZ MICHILENA ALEXANDER",2001]
[]
[]
[]
[]
[null,"SUPER CHASQUI 2 CABALLOS  (2000 Km)"]
[null,null,"JINETE","PROPIETARIO/JINETE","KILOMETRAJE"]
[null,1,"AR FAISAN","ARTURO RIBADENEIRA",2037]
[null,2]
[null,3]
[]
[null,"SUPER CHASQUI 2 BINOMIOS  (2000 Km)"]
[null,null,"JINETE","KILOMETRAJE"]
[null,1]
[null,2]
[null,3]
[]
[null,"SUPER CHASQUI 1 JINETES (1000 Km)"]
[null,null,"JINETE","KILOMETRAJE"]
[null,1,"DARQUEA RAFAELA",1980]
[null,2,"GUARDERAS BARAHONA SEBASTIAN",1943]
[null,3,"VINTIMILLA SERRANO PABLO XAVIER",1755]
[null,4,"MORABOWEN CESAR",1719]
[null,5,"SERRANO VALLEJO FELIPE",1579]
[null,6,"MORENO CORDOVEZ DANIELA",1496]
[null,7,"NOBOA MAURICIO",1484]
[null,8,"WRAY VINUEZA MATEO",1474]
[null,9,"MONROY BAROJA MARIA FERNANDA",1444]
[null,10,"DARQUEA BERNARDO",1443]
[null,11,"KOPPEL OSWALDO",1408]
[null,12,"CORNEJO BURNEO MANUEL",1298]
[null,13,"MORILLO SERGIO",1247]
[null,14,"VELEZ MENA MARIA CONSUELO",1201]
[null,15,"CANDO MARIO",1173]
[null,16,"LOYOLA VINTIMILLA MARIA CLAUDIA",1171]
[null,17,"DAVILA GORDILLO JUAN DIEGO",1071]
[null,18]
[null,19]
[null,20]
[]
[null,"SUPER CHASQUI 1 CABALLOS  (1000 Km)"]
[null,null,"JINETE","PROPIETARIO/JINETE","KILOMETRAJE"]
[null,1,"ANGOSTURA FRODO","RIBADENEIRA ARTURO",1890]
[null,2,"CENTAURO","HECTOR ALMEIDA",1872]
[null,3,"FHARA CONEJA","DARQUEA BERNARDO",1807]
[null,4,"MISTERIO","MORILLO MAURICIO",1572]
[null,5,"CG ALLASKI","WEEMAELS NATHALIE",1524]
[null,6,"BOM BOM","JUAN JOSE RECALDE",1489]
[null,7,"QUITA PENAS","ILIANA RUIZ",1339]
[null,8,"WISKY","MAURICIO NOBOA",1137]
[null,9,"PATACON","LOYOLA VINTIMILLA MARIA CLAUDIA",1115]
[null,10,"SHAKIRA","LETORT JOSE IGNACIO",1023]
[null,11,"TRUENO","DARQUEA BERNARDO",1011]
[null,12]
[null,13]
[null,14]
[null,15]
[null,16]
[null,17]
[null,18]
[null,19]
[null,20]
[null,21]
[null,22]
[null,23]
[null,24]
[null,25]
[]
[null,"SUPER CHASQUI 1 BINOMIOS  (1000 Km)"]
[null,null,"JINETE","CABALLO","KILOMETRAJE"]
[null,1,"HECTOR ALMEIDA","CENTAURO",1626]
[null,2,"WEEMAELS NATHALIE","CG ALLASKI",1520]
[null,3,"MORILLO MAURICIO","MISTERIO",1458]
[null,4,"DARQUEA BERNARDO","FHARA CONEJA",1362]
[null,5,"RIBADENEIRA SOFIA","AR FAISAN",1181]
[null,6,"LOYOLA VINTIMILLA MARIA CLAUDIA","PATACON",1115]
[null,7]
[null,8]
[null,9]
[null,10]
[null,11]
[null,12]
[null,13]

{"sheet":"EQUIPOS","index":3,"n_rows":23,"n_cols":41,"rows_kept":23,"cut":false,"hidden":false,"merged":[[1,1,1,20],[6,4,6,9],[4,1,4,9],[4,10,4,20],[5,10,5,20],[2,1,2,20]]}
[]
[null,"                                                      PUNTAJE  ACUMULADO"]
[null,"                                                                   EQUIPOS"]
[]
[null,"EQUIPOS",null,null,null,null,null,null,null,null,"PUNTAJES"]
[null,null,null,null,null,null,null,null,null,null,2016]
[null,null,"EQUIPO","CAPITAN","               JINETES",null,null,null,null,null,"I CHONE","II CHONE","III CHONE","IV CHONE","V CHONE","VI CHONE","VII CHONE","VIII CHONE","IX CHONE","X CHONE","ACUMULADO"]
[null,1,"ENDURANCE AZUAY","MARIA CONSUELO VELEZ ","PABLO VINTIMILLA","BERNARDA GONZALEZ","CLAUDIA LOYOLA","HECTOR ALMEIDA","JAIME BURBANO","MARIA CONSUELO VELEZ ",398.86,436.79999999999995,null,285.60000000000002,null,418,null,620.39,null,633.9,{"$f":"SUM(K8:T8)","v":2793.55}]
[null,3,"HACIENDA HATO VERDE","CESAR MORABOWEN AGUIRRE ","CESAR MORABOWEN MOSQUERA","JUAN ANTONIO LEON","JORGE DAVALOS","FABRICIO RAMIREZ","CESAR MORABOWEN AGUIRRE ","MAHNKE LIESEL",264.72000000000003,317.60000000000002,null,null,257.60000000000002,null,null,472.18,421.20000000000005,513.5,2246.8000000000002]
[null,2,"CACHAFAZ-SAN ALFONZO","ARTURO RIBADENEIRA ","JOAQUINA DAVALOS","FRANCISCO FALCONÍ","FELIPE PORTILLA","JOSÉ ANDRADE","SOFÍA RIVADENEIRA","ARTURO RIBADENEIRA ",387.28000000000003,436.79999999999995,null,null,null,null,null,null,null,null,824.07999999999993,null,null,null,null,null,null,null,null,null,null,null,null,null,null,null,null,null,null,{"$f":"+$U$8-U9","v":546.75},{"$f":"VLOOKUP(B10,#REF!,3,FALSE)","v":{"$error":"#REF!"}}]
[null,4,"SEGUROS EQUINOCCIAL","BERNARDO DARQUEA","JUAN JOSE RECALDE","FELIPE SERRANO","KEVIN MAZAPANTA","MANUEL CORNEJO","BERNARDO DARQUEA",null,390.72,null,null,null,null,null,null,null,null,null,390.72]
[null,5,"EKOS NEGOCIOS","MAURICIO MORILLO ","VALENTINA MORILLO",null,"NATHALIE WEEMAELS","MAURICIO MORILLO ",null,null,349.94000000000005,null,null,null,null,null,null,null,null,null,349.94000000000005]
[null,6,"SELECT","ARMANDO SERRANO","MANUELA JARAMILLO","BERNARDA LETORT","JOSE LETORT MENA","ARMANDO SERRANO",null,null,345.72,null,null,null,null,null,null,null,null,null,345.72]
[null,7,"ENDURANCE AZUAY 2","KOPPEL OSWALDO","LOZADA JOSE ARMANDO","MALO ANDREA","ALLAICO JOSE EMILIO","KOPPEL OSWALDO","DARQUEA ANA MARIA",null,null,null,null,null,null,336,null,null,null,null,336]
[null,8,"SWEADEN","GALO MANCHENO ","PAMELA MANCHENO","DANIEL MANCHENO","DIEGO MANCHENO","GALO MANCHENO ",null,null,167.15200000000002,null,null,null,null,null,null,null,null,null,167.15200000000002]
[null,9,null,null,null,null,null,null,null,null,null,null,null,null,null,null,null,null,null,null,{"$f":"SUM(K16:T16)","v":0}]
[null,10,null,null,null,null,null,null,null,null,null,null,null,null,null,null,null,null,null,null,0]
[null,11,null,null,null,null,null,null,null,null,null,null,null,null,null,null,null,null,null,null,0]
[null,12,null,null,null,null,null,null,null,null,null,null,null,null,null,null,null,null,null,null,0]
[null,13,null,null,null,null,null,null,null,null,null,null,null,null,null,null,null,null,null,null,0]
[null,14,null,null,null,null,null,null,null,null,null,null,null,null,null,null,null,null,null,null,0]
[null,15,null,null,null,null,null,null,null,null,null,null,null,null,null,null,null,null,null,null,0]
[null,16,null,null,null,null,null,null,null,null,null,null,null,null,null,null,null,null,null,null,0]

{"sheet":"ELITE ABIERTA","index":4,"n_rows":51,"n_cols":15,"rows_kept":51,"cut":false,"hidden":false,"merged":[[5,4,5,14],[4,1,4,3],[4,4,4,14],[1,1,1,14],[2,1,2,14]]}
[]
[null,"PUNTAJE  ACUMULADO"]
[null,"CATEGORÍA ABIERTA ELITE"]
[]
[null,"ELITE ABIERTA",null,null,"PUNTAJES"]
[null,null,null,null,2016]
[null,null,"CODIGO","JINETE","I CHONE","II CHONE","III CHONE","IV CHONE","V CHONE","VI CHONE","VII CHONE","VIII CHONE","IX CHONE","X CHONE","ACUMULADO"]
[null,1,"A035","ALMEIDA AYALA HECTOR",130.24,null,null,null,null,160,null,240.2,null,229.9,{"$f":"SUM(E8:N8)","v":760.34}]
[null,2,"A045","MORABOWEN CESAR",null,122,null,null,null,null,null,216.18,129.6,205.7,673.48]
[null,3,"A171","WEEMAELS NATHALIE",162.80000000000001,null,null,null,320,null,null,null,null,162,644.79999999999995]
[null,4,"A092","VINTIMILLA PABLO",138.38,null,null,null,null,76,null,228.18999999999997,{"$f":"81*2","v":162},null,604.56999999999994]
[null,5,"A055","VELEZ MARIA CONSUELO",130.24,73.600000000000009,null,67.2,null,130,94,null,null,null,495.04]
[null,6,"A185","RAMIREZ FABRICIO",68.960000000000008,null,null,null,null,null,null,128,129.6,145.80000000000001,472.36]
[null,7,"A201","ALLAICO JOSE EMILIO",null,73.600000000000009,null,67.2,null,80,null,null,null,242,462.8]
[null,8,"A172","BURBANO VILLAVICENCIO JAIME",null,134.4,null,null,null,128,null,null,null,153.9,416.29999999999995]
[null,9,"A214","MOYA MIGUEL ANGEL",null,null,null,134.4,null,128,null,136,null,null,398.4]
[null,10,"A033","SERRANO ARMANDO",146.52000000000001,null,null,null,null,null,null,152,null,null,298.52]
[null,11,"A057","DAVILA JUAN DIEGO",68.960000000000008,null,null,null,null,null,null,160,68.8,null,297.76]
[null,12,"A059","PORTILLA FELIPE",126.80000000000001,168,null,null,null,null,null,null,null,null,294.8]
[null,13,"A060","RECALDE JUAN JOSE",130.24,null,null,null,null,null,null,144,null,null,274.24]
[null,17,"A067","CANDO MARIO",null,null,null,134.4,null,null,null,null,68.8,68.8,272]
[null,14,"A192","LOZADA JOSE ARMANDO",null,null,null,null,null,128,null,128,null,null,256]
[null,15,"A200","MANCHENO GALO",68.960000000000008,null,null,null,null,null,null,null,153.9,null,222.86]
[null,16,"A215","JAQUELINE DAVIS",null,null,null,null,null,null,null,null,null,217.8,217.8]
[null,18,"A081","KOPPEL OSWALDO",null,null,null,134.4,null,64,null,null,null,null,198.4]
[null,19,"A056","MORILLO MAURICIO",154.66,null,null,null,null,null,null,null,null,null,154.66]
[null,23,"A026","LETORT JOSE",68.960000000000008,null,null,null,null,null,null,null,null,68.8,137.76]
[null,20,"A200","MALO DIANA",null,null,null,67.2,null,64,null,null,null,null,131.19999999999999]
[null,21,"A048","BARAHONA ANDRES",130.24,null,null,null,null,null,null,null,null,null,130.24]
[null,23,"A046","MAURICIO  NOBOA",null,null,null,null,null,null,null,null,null,129.6,129.6]
[null,22,"A058","RIBADENEIRA ARTURO",86.2,null,null,null,null,null,null,null,null,null,86.2]
[]
[null,null,null,null,null,null,null,null,null,null,null,{"$f":"IF(J33>=60,\"CLASIFICADO A 60 Km LIBRE y 80 Km NOVICIO\",IF(J33>=40,\"CLASIFICADO A 40 Km LIBRE y 60 Km NOVICIO\",\"\"))","v":""}]
[]
[]
[]
[]
[]
[]
[]
[]
[]
[]
[]
[]
[]
[]
[]
[]
[]
[null,null,null,null,null,null,null,null,null,null,null,{"$f":"IF(J51>=60,\"CLASIFICADO A 60 Km LIBRE y 80 Km NOVICIO\",IF(J51>=40,\"CLASIFICADO A 40 Km LIBRE y 60 Km NOVICIO\",\"\"))","v":""}]

{"sheet":"ELITE JUVENIL","index":5,"n_rows":39,"n_cols":15,"rows_kept":39,"cut":false,"hidden":false,"merged":[[5,4,5,14],[4,1,4,3],[4,4,4,14],[1,1,1,14],[2,1,2,14]]}
[]
[null,"PUNTAJE  ACUMULADO"]
[null,"CATEGORÍA JUVENIL ELITE"]
[]
[null,"ELITE JUVENIL",null,null,"PUNTAJES"]
[null,null,null,null,2016]
[null,null,"CODIGO","JINETE","I CHONE","II CHONE","III CHONE","IV CHONE","V CHONE","VI CHONE","VII CHONE","VIII CHONE","IX CHONE","X CHONE","ACUMULADO"]
[null,1,"J063","GONZALEZ BERNARDA",null,134.4,null,134.4,152.38,76,null,152,162,242,{"$f":"SUM(E8:N8)","v":1053.18}]
[null,2,"J034","ANDRADE JOSE DANIEL",null,134.4,null,168,320,64,null,null,null,null,686.4]
[null,3,"J055","LOYOLA CLAUDIA MARIA",null,168,null,84,160.4,80,null,null,null,162,654.4]
[null,4,"J096","LOYOLA TEODORO ANDRES",null,73.600000000000009,null,67.2,null,null,null,144,null,{"$f":"162*0.95","v":153.9},438.70000000000005]
[null,5,"J011","LETORT BERNARDA",null,null,null,null,240,null,null,null,126,null,366]
[null,6,"J020","SERRANO FELIPE",130.24,null,null,null,null,null,null,160,null,null,290.24]
[null,7,"J111","DAVALOS JOAQUINA",130.24,134.4,null,null,null,null,null,null,null,null,264.64]
[null,8,"J008","GOMEZ ALEXANDER",null,null,null,null,64.64,null,null,null,68.8,129.6,263.03999999999996]
[null,9,"J114","MASAPANTA LUIS",null,null,null,null,null,null,null,null,68.8,129.6,198.39999999999998]
[null,10,"J021","CORNEJO MANUEL",null,null,null,null,144.36000000000001,null,null,null,null,null,144.36000000000001]
[null,11,null,null,null,null,null,null,null,null,null,null,null,null,{"$f":"SUM(E18:N18)","v":0}]
[null,12,null,null,null,null,null,null,null,null,null,null,null,null,0]
[null,13,null,null,null,null,null,null,null,null,null,null,null,null,0]
[null,14,null,null,null,null,null,null,null,null,null,null,null,null,0]
[null,15,null,null,null,null,null,null,null,null,null,null,null,null,0]
[null,16,null,null,null,null,null,null,null,null,null,null,null,null,{"$f":"SUM(E23:N23)","v":0}]
[null,17,null,null,null,null,null,null,null,null,null,null,null,null,0]
[null,18,null,null,null,null,null,null,null,null,null,null,null,null,0]
[null,19,null,null,null,null,null,null,null,null,null,null,null,null,0]
[]
[null,null,null,null,null,null,null,null,null,null,null,{"$f":"IF(J28>=60,\"CLASIFICADO A 60 Km LIBRE y 80 Km NOVICIO\",IF(J28>=40,\"CLASIFICADO A 40 Km LIBRE y 60 Km NOVICIO\",\"\"))","v":""}]
[]
[]
[]
[]
[]
[]
[]
[]
[]
[]
[null,null,null,null,null,null,null,null,null,null,null,{"$f":"IF(J39>=60,\"CLASIFICADO A 60 Km LIBRE y 80 Km NOVICIO\",IF(J39>=40,\"CLASIFICADO A 40 Km LIBRE y 60 Km NOVICIO\",\"\"))","v":""}]

{"sheet":"ELITE MENORES","index":6,"n_rows":39,"n_cols":15,"rows_kept":39,"cut":false,"hidden":false,"merged":[[1,1,1,14],[2,1,2,14],[4,1,4,3],[4,4,4,14],[5,4,5,14]]}
[]
[null,"PUNTAJE  ACUMULADO"]
[null,"CATEGORÍA MENORES ELITE"]
[]
[null,"ELITE MENORES",null,null,"PUNTAJES"]
[null,null,null,null,2016]
[null,null,"CODIGO","JINETE","I CHONE","II CHONE","III CHONE","IV CHONE","V CHONE","VI CHONE","VII CHONE","VIII CHONE","IX CHONE","X CHONE","ACUMULADO"]
[null,1,"M022","MORABOWEN MOSQUERA CESAR",126.80000000000001,122,null,null,128.32000000000002,null,null,128,162,162,{"$f":"SUM(E8:N8)","v":829.12}]
[null,2,null,null,null,null,null,null,null,null,null,null,null,null,0]
[null,3,null,null,null,null,null,null,null,null,null,null,null,null,0]
[null,4,null,null,null,null,null,null,null,null,null,null,null,null,0]
[null,5,null,null,null,null,null,null,null,null,null,null,null,null,0]
[null,6,null,null,null,null,null,null,null,null,null,null,null,null,0]
[null,7,null,null,null,null,null,null,null,null,null,null,null,null,0]
[null,8,null,null,null,null,null,null,null,null,null,null,null,null,0]
[null,9,null,null,null,null,null,null,null,null,null,null,null,null,0]
[null,10,null,null,null,null,null,null,null,null,null,null,null,null,0]
[null,11,null,null,null,null,null,null,null,null,null,null,null,null,0]
[null,12,null,null,null,null,null,null,null,null,null,null,null,null,0]
[null,13,null,null,null,null,null,null,null,null,null,null,null,null,0]
[null,14,null,null,null,null,null,null,null,null,null,null,null,null,0]
[null,15,null,null,null,null,null,null,null,null,null,null,null,null,{"$f":"SUM(E22:N22)","v":0}]
[null,16,null,null,null,null,null,null,null,null,null,null,null,null,0]
[null,17,null,null,null,null,null,null,null,null,null,null,null,null,0]
[null,18,null,null,null,null,null,null,null,null,null,null,null,null,0]
[null,19,null,null,null,null,null,null,null,null,null,null,null,null,0]
[]
[null,null,null,null,null,null,null,null,null,null,null,{"$f":"IF(J28>=60,\"CLASIFICADO A 60 Km LIBRE y 80 Km NOVICIO\",IF(J28>=40,\"CLASIFICADO A 40 Km LIBRE y 60 Km NOVICIO\",\"\"))","v":""}]
[]
[]
[]
[]
[]
[]
[]
[]
[]
[]
[null,null,null,null,null,null,null,null,null,null,null,{"$f":"IF(J39>=60,\"CLASIFICADO A 60 Km LIBRE y 80 Km NOVICIO\",IF(J39>=40,\"CLASIFICADO A 40 Km LIBRE y 60 Km NOVICIO\",\"\"))","v":""}]

{"sheet":"ELITE CABALLOS","index":7,"n_rows":80,"n_cols":16,"rows_kept":80,"cut":false,"hidden":false,"merged":[[5,5,5,15],[4,5,4,15],[1,1,1,15],[2,1,2,15],[4,1,4,4]]}
[]
[null,"PUNTAJE  ACUMULADO"]
[null,"CATEGORÍA CABALLOS ELITE"]
[]
[null,"ELITE CABALLOS",null,null,null,"PUNTAJES"]
[null,null,null,null,null,2016]
[null,null,"CODIGO","CABALLO","DUEÑO/JINETE","I CHONE","II CHONE","III CHONE","IV CHONE","V CHONE","VI CHONE","VII CHONE","VIII CHONE","IX CHONE","X CHONE","ACUMULADO"]
[null,1,"C115","AVENTURERO","HECTOR ALMEIDA AYALA",null,null,null,null,null,null,null,240.2,null,229.9,{"$f":"SUM(F8:O8)","v":470.1}]
[null,2,"C445","ANGOSTURA FRODO","ARTURO RIBADENEIRA",68.960000000000008,134.4,null,null,320,null,null,null,null,null,{"$f":"SUM(F9:O9)-F9","v":454.4}]
[null,3,"C238","CALEÑA CMB","MORABOWEN CESAR",null,122,null,126.80000000000001,128.32000000000002,null,null,128,162,162,{"$f":"SUM(F10:O10)-G10-I10-M10","v":452.31999999999994}]
[null,4,"C394","POLACO","GONZALEZ BERNARDA",null,134.4,null,134.4,null,null,null,152,162,null,{"$f":"SUM(F11:O11)-G11","v":448.4}]
[null,5,"C252","BIANCA","VINTIMILLA PABLO",138.38,null,null,null,null,76,null,228.18999999999997,null,null,{"$f":"SUM(F12:O12)","v":442.56999999999994}]
[null,6,"C329","SERENATA CMB","MORABOWEN CESAR",null,null,null,null,null,null,null,216.18,null,205.7,{"$f":"SUM(F13:O13)","v":421.88}]
[null,7,"C454","MD YALA","ARMANDO SERRANO",130.24,null,null,134.4,null,null,null,152,null,null,{"$f":"SUM(F14:O14)","v":416.64}]
[null,8,"C286","NEGRO EG","BURBANO VILLAVICENCIO JAIME",null,134.4,null,null,null,128,null,null,null,153.9,{"$f":"SUM(F15:O15)","v":416.29999999999995}]
[null,9,"C192","KALA","LOYOLA CLAUDIA MARIA",null,168,null,84,160.4,null,null,null,null,null,{"$f":"SUM(F16:O16)","v":412.4}]
[null,10,"C229","BULERIA CMB","MORABOWEN CESAR",null,122,null,null,null,null,null,128,129.6,145.80000000000001,{"$f":"SUM(F17:O17)-G17","v":403.40000000000009}]
[null,11,"C165","DIAMANTE","MOYA MIGUEL ANGEL",130.24,null,null,134.4,null,128,null,136,null,null,{"$f":"SUM(F18:O18)-K18","v":400.64}]
[null,12,"C209","AISHA","MARIA CONSUELO VELEZ MENA",130.24,null,null,67.2,null,null,94,144,null,null,{"$f":"SUM(F19:O19)-I19","v":368.24}]
[null,13,"C154","SHAKIRA","LETORT BERNARDA",null,null,null,null,240,null,null,null,126,null,{"$f":"SUM(F20:O20)","v":366}]
[null,14,"C098","BOMBON","RECALDE JUAN JOSE",null,null,null,null,null,null,null,144,null,217.8,361.8]
[null,15,"C206","AS GITANA","SERRANO ARMANDO",146.52000000000001,null,null,67.2,144.36000000000001,null,null,null,null,null,358.08000000000004]
[null,16,"C413","RO EVITA","NATHALIE WEEMAELS",162.80000000000001,null,null,null,null,null,null,null,null,162,324.8]
[null,17,"C232","ASRAEL","BERNARDO GONZALEZ",null,null,null,null,null,80,null,null,null,242,322]
[null,18,"C093","CG ALLASKI","WEEMAELS NATHALIE",null,null,null,null,320,null,null,null,null,null,320]
[null,19,"C333","KADIN","GONZALEZ BERNARDA",null,null,null,null,null,76,null,null,null,242,318]
[null,20,"C204","AR ALBATSYN","PORTILLA FELIPE",126.80000000000001,168,null,null,null,null,null,null,null,null,294.8]
[null,21,"C234","EL PADRINO","VELEZ MENA MARIA CONSUELO",null,null,null,null,null,130,null,null,null,153.9,283.89999999999998]
[null,22,"C197","PATACON","LOYOLA CLAUDIA MARIA",null,null,null,null,null,80,null,null,null,162,242]
[null,23,"C074","WISKY","PABLO VINTIMILLA",null,null,null,null,null,null,null,76,162,null,238]
[null,24,"C405","SOLOANDA","FELIPE ANDRADE",null,null,null,null,null,64,null,160,null,null,224]
[null,25,"C360","PSICOTICO","GALO MANCHENO",68.960000000000008,null,null,null,null,null,null,null,153.9,null,222.86]
[null,26,"C134","JUPITER","FELIPE ANDRADE",null,null,null,168,null,null,null,null,null,null,168]
[null,27,"C097","CENTAURO","JAIME BURBANO",null,null,null,null,null,160,null,null,null,null,160]
[null,28,"C136","FHARA CONEJA","BERNARDO DARQUEA",null,null,null,null,null,null,null,160,null,null,{"$f":"SUM(F35:O35)","v":160}]
[null,29,"C094","MISTERIO","MAURICIO MORILLO",154.66,null,null,null,null,null,null,null,null,null,154.66]
[null,30,"C004","TEQUILA","GONZALEZ BERNARDO",null,null,null,null,152.38,null,null,null,null,null,152.38]
[null,31,"C175","CLAW","ARTURO RIBADENEIRA",130.24,null,null,null,null,null,null,null,null,null,130.24]
[null,32,"C114","KAFIR HA","HECTOR ALMEIDA AYALA",130.24,null,null,null,null,null,null,null,null,null,130.24]
[null,33,"C174","ZT SATFANDU","ARTURO RIBADENEIRA",null,null,null,null,128.32000000000002,null,null,null,null,null,128.32000000000002]
[null,34,"C096","AR FAISAN","ARTURO RIBADENEIRA",86.2,null,null,null,null,null,null,null,null,null,86.2]
[null,35,null,null,null,null,null,null,null,null,null,null,null,null,null,{"$f":"SUM(F42:O42)","v":0}]
[null,36,null,null,null,null,null,null,null,null,null,null,null,null,null,0]
[null,37,null,null,null,null,null,null,null,null,null,null,null,null,null,0]
[null,38,null,null,null,null,null,null,null,null,null,null,null,null,null,0]
[null,39,null,null,null,null,null,null,null,null,null,null,null,null,null,0]
[null,40,null,null,null,null,null,null,null,null,null,null,null,null,null,0]
[null,41,null,null,null,null,null,null,null,null,null,null,null,null,null,0]
[null,42,null,null,null,null,null,null,null,null,null,null,null,null,null,0]
[null,43,null,null,null,null,null,null,null,null,null,null,null,null,null,0]
[null,44,null,null,null,null,null,null,null,null,null,null,null,null,null,0]
[null,45,null,null,null,null,null,null,null,null,null,null,null,null,null,0]
[null,46,null,null,null,null,null,null,null,null,null,null,null,null,null,0]
[null,47,null,null,null,null,null,null,null,null,null,null,null,null,null,0]
[null,48,null,null,null,null,null,null,null,null,null,null,null,null,null,0]
[null,49,null,null,null,null,null,null,null,null,null,null,null,null,null,0]
[null,50,null,null,null,null,null,null,null,null,null,null,null,null,null,0]
[null,51,null,null,null,null,null,null,null,null,null,null,null,null,null,0]
[null,52,null,null,null,null,null,null,null,null,null,null,null,null,null,0]
[null,53,null,null,null,null,null,null,null,null,null,null,null,null,null,0]
[]
[]
[]
[]
[]
[]
[]
[]
[]
[]
[]
[]
[]
[]
[]
[]
[]
[]
[]
[null,null,null,null,null,null,null,null,null,null,null,null,{"$f":"IF(K80>=60,\"CLASIFICADO A 60 Km LIBRE y 80 Km NOVICIO\",IF(K80>=40,\"CLASIFICADO A 40 Km LIBRE y 60 Km NOVICIO\",\"\"))","v":""}]

{"sheet":"AMATEUR ABIERTA","index":8,"n_rows":94,"n_cols":15,"rows_kept":94,"cut":false,"hidden":false,"merged":[[5,4,5,14],[4,1,4,3],[4,4,4,14],[1,1,1,14],[2,1,2,14]]}
[]
[null,"PUNTAJE  ACUMULADO"]
[null,"CATEGORÍA ABIERTA NOVICIOS"]
[]
[null,"NOVICIOS ABIERTA",null,null,"PUNTAJES"]
[null,null,null,null,2016]
[null,null,"CODIGO","JINETE","I CHONE","II CHONE","III CHONE","IV CHONE","V CHONE","VI CHONE","VII CHONE","VIII CHONE","IX CHONE","X CHONE","ACUMULADO"]
[null,1,"A212","CANGAS GUILLERMO",68.960000000000008,null,null,null,64.64,null,null,128,129.6,null,{"$f":"SUM(E8:N8)","v":391.20000000000005}]
[null,2,"A125","FALCONI FRANCISCO",130.24,null,null,null,128.32000000000002,null,null,null,68.8,null,327.36000000000007]
[null,3,"A179","MANCHENO PAMELA",68.960000000000008,null,null,null,64.64,null,null,null,129.6,null,263.20000000000005]
[null,4,"A097","MALO ANDREA",null,null,null,null,null,128,null,64,null,null,192]
[null,5,"A201","ALLAICO JOSE EMILIO",null,73.600000000000009,null,67.2,null,null,null,null,null,null,140.80000000000001]
[null,6,"A219","MAHNKE LIESEL",null,null,null,null,64.64,64,null,null,null,null,128.63999999999999]
[null,7,"A220","TUTIVEN LUIS",null,null,null,null,64.64,64,null,null,null,null,128.63999999999999]
[null,8,"A178","JUAN CARLOS ANDRADE",null,null,null,null,null,null,null,null,null,86,86]
[null,9,"A215","COELLAR GONZALEZ PEDRO",null,73.600000000000009,null,null,null,null,null,null,null,null,73.600000000000009]
[null,10,"A218","UGALDE LORENA",null,73.600000000000009,null,null,null,null,null,null,null,null,73.600000000000009]
[null,11,"A221","PASQUEL HUGO",68.960000000000008,null,null,null,null,null,null,null,null,null,68.960000000000008]
[null,12,"A220","DUEÑAS GONZALO",68.960000000000008,null,null,null,null,null,null,null,null,null,68.960000000000008]
[null,13,"A236","JUNE TATE",null,null,null,null,null,null,null,null,null,68.8,68.8]
[null,14,"A301","SIMON  PEREZ",null,null,null,null,null,null,null,null,null,68.8,68.8]
[null,15,"A215","COELLAR GONZALEZ PEDRO",null,null,null,67.2,null,null,null,null,null,null,67.2]
[null,16,"A223","MORENO MILTON GABRIEL",null,null,null,67.2,null,null,null,null,null,null,67.2]
[null,17,"A218","TRUEBA VICTORIA",null,null,null,null,64.64,null,null,null,null,null,64.64]
[null,18,null,null,null,null,null,null,null,null,null,null,null,null,0]
[null,19,null,null,null,null,null,null,null,null,null,null,null,null,{"$f":"SUM(E26:N26)","v":0}]
[null,20,null,null,null,null,null,null,null,null,null,null,null,null,{"$f":"SUM(E27:N27)","v":0}]
[null,21,null,null,null,null,null,null,null,null,null,null,null,null,0]
[null,22,null,null,null,null,null,null,null,null,null,null,null,null,0]
[null,23,null,null,null,null,null,null,null,null,null,null,null,null,0]
[null,24,null,null,null,null,null,null,null,null,null,null,null,null,0]
[null,25,null,null,null,null,null,null,null,null,null,null,null,null,0]
[null,26,null,null,null,null,null,null,null,null,null,null,null,null,0]
[null,27,null,null,null,null,null,null,null,null,null,null,null,null,0]
[null,28,null,null,null,null,null,null,null,null,null,null,null,null,0]
[null,29,null,null,null,null,null,null,null,null,null,null,null,null,0]
[null,30,null,null,null,null,null,null,null,null,null,null,null,null,0]
[null,31,null,null,null,null,null,null,null,null,null,null,null,null,0]
[null,32,null,null,null,null,null,null,null,null,null,null,null,null,0]
[null,33,null,null,null,null,null,null,null,null,null,null,null,null,0]
[null,34,null,null,null,null,null,null,null,null,null,null,null,null,0]
[null,35,null,null,null,null,null,null,null,null,null,null,null,null,0]
[null,36,null,null,null,null,null,null,null,null,null,null,null,null,0]
[null,37,null,null,null,null,null,null,null,null,null,null,null,null,0]
[null,38,null,null,null,null,null,null,null,null,null,null,null,null,0]
[null,39,null,null,null,null,null,null,null,null,null,null,null,null,0]
[null,40,null,null,null,null,null,null,null,null,null,null,null,null,0]
[null,41,null,null,null,null,null,null,null,null,null,null,null,null,0]
[null,42,null,null,null,null,null,null,null,null,null,null,null,null,0]
[null,43,null,null,null,null,null,null,null,null,null,null,null,null,{"$f":"SUM(E50:N50)","v":0}]
[null,44,null,null,null,null,null,null,null,null,null,null,null,null,{"$f":"SUM(E51:N51)","v":0}]
[null,45,null,null,null,null,null,null,null,null,null,null,null,null,0]
[null,46,null,null,null,null,null,null,null,null,null,null,null,null,0]
[null,47,null,null,null,null,null,null,null,null,null,null,null,null,0]
[null,48,null,null,null,null,null,null,null,null,null,null,null,null,0]
[null,49,null,null,null,null,null,null,null,null,null,null,null,null,0]
[null,50,null,null,null,null,null,null,null,null,null,null,null,null,0]
[null,51,null,null,null,null,null,null,null,null,null,null,null,null,0]
[null,52,null,null,null,null,null,null,null,null,null,null,null,null,0]
[null,53,null,null,null,null,null,null,null,null,null,null,null,null,0]
[null,54,null,null,null,null,null,null,null,null,null,null,null,null,0]
[null,55,null,null,null,null,null,null,null,null,null,null,null,null,0]
[null,56,null,null,null,null,null,null,null,null,null,null,null,null,0]
[null,57,null,null,null,null,null,null,null,null,null,null,null,null,0]
[null,58,null,null,null,null,null,null,null,null,null,null,null,null,0]
[null,59,null,null,null,null,null,null,null,null,null,null,null,null,0]
[null,60,null,null,null,null,null,null,null,null,null,null,null,null,0]
[null,61,null,null,null,null,null,null,null,null,null,null,null,null,0]
[null,62,null,null,null,null,null,null,null,null,null,null,null,null,0]
[null,63,null,null,null,null,null,null,null,null,null,null,null,null,0]
[null,64,null,null,null,null,null,null,null,null,null,null,null,null,0]
[null,65,null,null,null,null,null,null,null,null,null,null,null,null,0]
[null,66,null,null,null,null,null,null,null,null,null,null,null,null,0]
[null,67,null,null,null,null,null,null,null,null,null,null,null,null,0]
[]
[]
[]
[]
[]
[]
[]
[]
[]
[]
[]
[]
[]
[]
[]
[]
[]
[]
[]
[null,null,null,null,null,null,null,null,null,null,null,{"$f":"IF(J94>=60,\"CLASIFICADO A 60 Km LIBRE y 80 Km NOVICIO\",IF(J94>=40,\"CLASIFICADO A 40 Km LIBRE y 60 Km NOVICIO\",\"\"))","v":""}]

{"sheet":"AMATEUR JUVENIL","index":9,"n_rows":83,"n_cols":15,"rows_kept":83,"cut":false,"hidden":false,"merged":[[5,4,5,14],[4,1,4,3],[4,4,4,14],[1,1,1,14],[2,1,2,14]]}
[]
[null,"PUNTAJE  ACUMULADO"]
[null,"CATEGORÍA JUVENIL NOVICIOS"]
[]
[null,"NOVICIOS JUVENIL",null,null,"PUNTAJES"]
[null,null,null,null,2016]
[null,null,"CODIGO","JINETE","I CHONE","II CHONE","III CHONE","IV CHONE","V CHONE","VI CHONE","VII CHONE","VIII CHONE","IX CHONE","X CHONE","ACUMULADO"]
[null,1,"J200","MAZAPANTA LUIS",68.960000000000008,null,null,null,null,null,null,null,null,129.6,{"$f":"SUM(E8:N8)","v":198.56}]
[null,2,"J109","DARQUEA ANA MARIA",130.24,null,null,null,null,64,null,null,null,null,194.24]
[null,3,"J079","JARAMILLO MANUELA",130.24,null,null,null,null,null,null,null,null,null,130.24]
[null,4,"J114","MAZAPANTA KEVIN",130.24,null,null,null,null,null,null,null,null,null,130.24]
[null,11,"J095","BERREZUETA PABLO SANTIAGO",null,null,null,null,null,null,null,80,null,null,80]
[null,5,"J100","HURTADO HECTOR",null,null,null,null,null,null,null,76,null,null,76]
[null,6,"J021","CORNEJO MANUEL",68.960000000000008,null,null,null,null,null,null,null,null,null,68.960000000000008]
[null,7,"J065","ESPINOZA BARBARA",68.960000000000008,null,null,null,null,null,null,null,null,null,68.960000000000008]
[null,8,"J112","LEON JUAN",68.960000000000008,null,null,null,null,null,null,null,null,null,68.960000000000008]
[null,9,"J019","DARQUEA RICARDO",null,null,null,null,null,null,null,null,68.8,null,68.8]
[null,10,"J201","PAREDES EDWIN",null,null,null,null,64.64,null,null,null,null,null,64.64]
[null,12,"J117","CANDELARIO ARREAGA WAGNER",null,null,null,null,null,64,null,null,null,null,64]
[null,13,"A241","PEREZ SANDRO",null,null,null,null,null,null,null,64,null,null,64]
[null,14,null,null,null,null,null,null,null,null,null,null,null,null,0]
[null,15,null,null,null,null,null,null,null,null,null,null,null,null,{"$f":"SUM(E22:N22)","v":0}]
[null,16,null,null,null,null,null,null,null,null,null,null,null,null,{"$f":"SUM(E23:N23)","v":0}]
[null,17,null,null,null,null,null,null,null,null,null,null,null,null,0]
[null,18,null,null,null,null,null,null,null,null,null,null,null,null,{"$f":"SUM(E25:N25)","v":0}]
[null,19,null,null,null,null,null,null,null,null,null,null,null,null,0]
[null,20,null,null,null,null,null,null,null,null,null,null,null,null,0]
[null,21,null,null,null,null,null,null,null,null,null,null,null,null,0]
[null,22,null,null,null,null,null,null,null,null,null,null,null,null,0]
[null,23,null,null,null,null,null,null,null,null,null,null,null,null,0]
[null,24,null,null,null,null,null,null,null,null,null,null,null,null,0]
[null,25,null,null,null,null,null,null,null,null,null,null,null,null,0]
[null,26,null,null,null,null,null,null,null,null,null,null,null,null,0]
[null,27,null,null,null,null,null,null,null,null,null,null,null,null,0]
[null,28,null,null,null,null,null,null,null,null,null,null,null,null,0]
[null,29,null,null,null,null,null,null,null,null,null,null,null,null,0]
[null,30,null,null,null,null,null,null,null,null,null,null,null,null,0]
[null,31,null,null,null,null,null,null,null,null,null,null,null,null,0]
[null,32,null,null,null,null,null,null,null,null,null,null,null,null,0]
[null,33,null,null,null,null,null,null,null,null,null,null,null,null,0]
[null,34,null,null,null,null,null,null,null,null,null,null,null,null,0]
[null,35,null,null,null,null,null,null,null,null,null,null,null,null,0]
[null,36,null,null,null,null,null,null,null,null,null,null,null,null,0]
[null,37,null,null,null,null,null,null,null,null,null,null,null,null,0]
[null,38,null,null,null,null,null,null,null,null,null,null,null,null,0]
[null,39,null,null,null,null,null,null,null,null,null,null,null,null,0]
[null,40,null,null,null,null,null,null,null,null,null,null,null,null,0]
[null,41,null,null,null,null,null,null,null,null,null,null,null,null,0]
[null,42,null,null,null,null,null,null,null,null,null,null,null,null,0]
[null,43,null,null,null,null,null,null,null,null,null,null,null,null,0]
[null,44,null,null,null,null,null,null,null,null,null,null,null,null,0]
[null,45,null,null,null,null,null,null,null,null,null,null,null,null,0]
[null,46,null,null,null,null,null,null,null,null,null,null,null,null,0]
[null,47,null,null,null,null,null,null,null,null,null,null,null,null,0]
[null,48,null,null,null,null,null,null,null,null,null,null,null,null,0]
[null,49,null,null,null,null,null,null,null,null,null,null,null,null,0]
[null,50,null,null,null,null,null,null,null,null,null,null,null,null,0]
[null,51,null,null,null,null,null,null,null,null,null,null,null,null,0]
[null,52,null,null,null,null,null,null,null,null,null,null,null,null,0]
[null,53,null,null,null,null,null,null,null,null,null,null,null,null,0]
[null,54,null,null,null,null,null,null,null,null,null,null,null,null,0]
[null,55,null,null,null,null,null,null,null,null,null,null,null,null,0]
[null,56,null,null,null,null,null,null,null,null,null,null,null,null,0]
[]
[null,null,null,null,null,null,null,null,null,null,null,{"$f":"IF(J65>=60,\"CLASIFICADO A 60 Km LIBRE y 80 Km NOVICIO\",IF(J65>=40,\"CLASIFICADO A 40 Km LIBRE y 60 Km NOVICIO\",\"\"))","v":""}]
[]
[]
[]
[]
[]
[]
[]
[]
[]
[]
[]
[]
[]
[]
[]
[]
[]
[null,null,null,null,null,null,null,null,null,null,null,{"$f":"IF(J83>=60,\"CLASIFICADO A 60 Km LIBRE y 80 Km NOVICIO\",IF(J83>=40,\"CLASIFICADO A 40 Km LIBRE y 60 Km NOVICIO\",\"\"))","v":""}]

{"sheet":"AMATEUR MENORES","index":10,"n_rows":50,"n_cols":15,"rows_kept":50,"cut":false,"hidden":false,"merged":[[5,4,5,14],[4,1,4,3],[4,4,4,14],[1,1,1,14],[2,1,2,14]]}
[]
[null,"PUNTAJE  ACUMULADO"]
[null,"CATEGORÍA MENORES NOVICIOS"]
[]
[null,"INFANTIL",null,null,"PUNTAJES"]
[null,null,null,null,2016]
[null,null,"CODIGO","JINETE","I CHONE","II CHONE","III CHONE","IV CHONE","V CHONE","VI CHONE","VII CHONE","VIII CHONE","IX CHONE","X CHONE","ACUMULADO"]
[null,1,"M031","DAVALOS JORGE",68.960000000000008,73.600000000000009,null,null,64.64,null,null,64,null,126,{"$f":"SUM(E8:N8)","v":397.2}]
[null,2,null,null,null,null,null,null,null,null,null,null,null,null,0]
[null,3,null,null,null,null,null,null,null,null,null,null,null,null,0]
[null,4,null,null,null,null,null,null,null,null,null,null,null,null,0]
[null,5,null,null,null,null,null,null,null,null,null,null,null,null,0]
[null,6,null,null,null,null,null,null,null,null,null,null,null,null,0]
[null,7,null,null,null,null,null,null,null,null,null,null,null,null,0]
[null,8,null,null,null,null,null,null,null,null,null,null,null,null,0]
[null,9,null,null,null,null,null,null,null,null,null,null,null,null,0]
[null,10,null,null,null,null,null,null,null,null,null,null,null,null,0]
[null,11,null,null,null,null,null,null,null,null,null,null,null,null,0]
[null,12,null,null,null,null,null,null,null,null,null,null,null,null,{"$f":"SUM(E19:N19)","v":0}]
[null,13,null,null,null,null,null,null,null,null,null,null,null,null,0]
[null,14,null,null,null,null,null,null,null,null,null,null,null,null,0]
[null,15,null,null,null,null,null,null,null,null,null,null,null,null,0]
[null,16,null,null,null,null,null,null,null,null,null,null,null,null,0]
[null,17,null,null,null,null,null,null,null,null,null,null,null,null,0]
[null,18,null,null,null,null,null,null,null,null,null,null,null,null,0]
[null,19,null,null,null,null,null,null,null,null,null,null,null,null,0]
[null,20,null,null,null,null,null,null,null,null,null,null,null,null,0]
[null,21,null,null,null,null,null,null,null,null,null,null,null,null,0]
[null,22,null,null,null,null,null,null,null,null,null,null,null,null,0]
[null,23,null,null,null,null,null,null,null,null,null,null,null,null,0]
[]
[null,null,null,null,null,null,null,null,null,null,null,{"$f":"IF(J32>=60,\"CLASIFICADO A 60 Km LIBRE y 80 Km NOVICIO\",IF(J32>=40,\"CLASIFICADO A 40 Km LIBRE y 60 Km NOVICIO\",\"\"))","v":""}]
[]
[]
[]
[]
[]
[]
[]
[]
[]
[]
[]
[]
[]
[]
[]
[]
[]
[null,null,null,null,null,null,null,null,null,null,null,{"$f":"IF(J50>=60,\"CLASIFICADO A 60 Km LIBRE y 80 Km NOVICIO\",IF(J50>=40,\"CLASIFICADO A 40 Km LIBRE y 60 Km NOVICIO\",\"\"))","v":""}]

{"sheet":"CABALLOS NOVICIOS","index":11,"n_rows":117,"n_cols":16,"rows_kept":117,"cut":false,"hidden":false,"merged":[[5,5,5,15],[4,1,4,4],[4,5,4,15],[1,1,1,15],[2,1,2,15]]}
[]
[null,"PUNTAJE  ACUMULADO"]
[null,"CATEGORÍA CABALLOS NOVICIOS"]
[]
[null,"CABALLOS  NOVICIOS",null,null,null,"PUNTAJES"]
[null,null,null,null,null,2016]
[null,null,"CODIGO","CABALLO","DUEÑO/JINETE","I CHONE","II CHONE","III CHONE","IV CHONE","V CHONE","VI CHONE","VII CHONE","VIII CHONE","IX CHONE","X CHONE","ACUMULADO"]
[null,1,"C101","CARAMELO CMB","DAVALOS JORGE EDUARDO",68.960000000000008,73.600000000000009,null,null,64.64,null,null,64,null,126,{"$f":"SUM(F8:O8)-M8","v":333.2}]
[null,2,"C441","SANTOO","MARIA CONSUELO VELEZ MENA",null,73.600000000000009,null,67.2,null,128,null,64,null,null,{"$f":"SUM(F9:O9)","v":332.8}]
[null,3,"C417","MANDI CMB","CESAR MORABOWEN",68.960000000000008,null,null,null,64.64,64,null,64,129.6,null,{"$f":"SUM(F10:O10)-K10","v":327.20000000000005}]
[null,4,"C437","WOODY","CANGAS GUILLERMO",null,null,null,null,64.64,null,null,128,129.6,null,{"$f":"SUM(F11:O11)","v":322.24}]
[null,5,"C209","AISHA","MARIA CONSUELO VELEZ MENA",130.24,null,null,67.2,null,null,94,null,null,null,{"$f":"SUM(F12:O12)","v":291.44}]
[null,6,"C418","NABU","MANUEL CORNEJO",68.960000000000008,null,null,null,null,null,null,null,68.8,129.6,{"$f":"SUM(F13:O13)","v":267.36}]
[null,7,"C085","BLACK","BERNARDO DARQUEA",130.24,null,null,null,64.64,null,null,null,null,68.8,{"$f":"SUM(F14:O14)","v":263.68}]
[null,8,"C436","TAKARI CSE","GOMEZ ALEXANDER",null,null,null,null,64.64,null,null,null,68.8,129.6,{"$f":"SUM(G15:O15)","v":263.03999999999996}]
[null,9,"C414","GH PSHYRO","LOZADA JOSE ARMANDO",null,null,null,null,null,128,null,128,null,null,{"$f":"SUM(F16:O16)","v":256}]
[null,10,"C243","PAVITA","JUAN CARLOS ANDRADE",null,null,null,null,64.64,64,null,null,null,86,214.64]
[null,11,"C217","GERONIMO","GALO MANCHENO",68.960000000000008,null,null,null,null,null,null,null,129.6,null,198.56]
[null,12,"C406","ELECTRIFY VO","ANDRADE JOSE DANIEL",null,134.4,null,null,null,64,null,null,null,null,198.4]
[null,13,"C438","MC LUCAS","COELLAR GONZALEZ PEDRO",null,73.600000000000009,null,67.2,null,null,null,null,null,null,140.80000000000001]
[null,14,"C439","SAN CARLOS","ALLAICO JOSE EMILIO",null,73.600000000000009,null,67.2,null,null,null,null,null,null,140.80000000000001]
[null,15,"C369","AS ANGUS","ARMANDO SERRANO",null,null,null,null,null,null,null,null,68.8,68.8,137.6]
[null,18,"C282","MAGIC MENES","OSWALDO KOPPEL",null,null,null,134.4,null,null,null,null,null,null,134.4]
[null,19,"C387","AGUARDIENTICO","MAURICIO NOBOA",130.24,null,null,null,null,null,null,null,null,null,130.24]
[null,20,"C427","FLACA","FELIPE SERRANO",130.24,null,null,null,null,null,null,null,null,null,130.24]
[null,21,"C404","SALMA","MANUELA JARAMILLO",130.24,null,null,null,null,null,null,null,null,null,130.24]
[null,22,"C081","SUE LD","ANDRES BARAHONA",130.24,null,null,null,null,null,null,null,null,null,130.24]
[null,23,"C334","CAPORAL","SALTIVERI MARIA JESUS",null,null,null,null,null,null,null,null,null,null,129.6]
[null,24,"C288","LIA","MAURICIO NOBOA",null,null,null,null,null,null,null,null,null,129.6,{"$f":"SUM(F29:O29)","v":129.6}]
[null,25,"C130","ESPIRITU DEL ECUADOR","BERREZUETA PABLO SANTIAGO",null,null,null,null,null,null,null,80,null,null,80]
[null,26,"C444","QUINA","UGALDE LORENA",null,73.600000000000009,null,null,null,null,null,null,null,null,73.600000000000009]
[null,27,"C443","ZAHIRA","LOYOLA TEODORO ANDRES",null,73.600000000000009,null,null,null,null,null,null,null,null,73.600000000000009]
[null,28,"C416","CARRUZO","LUIS MAZAPANTA",68.960000000000008,null,null,null,null,null,null,null,null,null,68.960000000000008]
[null,29,"C370","JEREZ","JOSE LETORT",null,null,null,null,null,null,null,null,null,68.8,68.8]
[null,31,"C502","MONARCH","DAVILA JUAN DIEGO",null,null,null,null,null,null,null,null,68.8,null,68.8]
[null,32,"C140","SC SADIQ","HECTOR ALMEIDA AYALA",null,null,null,null,null,null,null,null,68.8,null,68.8]
[null,33,"C372","SHAKIRA CMB","CESAR MORABOWEN",null,null,null,null,null,null,null,null,null,68.8,68.8]
[null,34,"C278","JUGUETE","LOYOLA TEODORO ANDRES",null,null,null,67.2,null,null,null,null,null,null,67.2]
[null,35,"C438","MC JULIA","CESAR MORABOWEN",null,null,null,null,64.64,null,null,null,null,null,64.64]
[null,36,"C459","GALAN AMDD","DARQUEA ANA MARIA",null,null,null,null,null,64,null,null,null,null,64]
[null,37,"C461","JULIA CMB","CESAR MORABOWEN",null,null,null,null,null,64,null,null,null,null,64]
[null,38,"C462","SERENA","CANDELARIO ARREAGA WAGNER",null,null,null,null,null,64,null,null,null,null,64]
[null,39,null,null,null,null,null,null,null,null,null,null,null,null,null,0]
[null,40,null,null,null,null,null,null,null,null,null,null,null,null,null,0]
[null,41,null,null,null,null,null,null,null,null,null,null,null,null,null,{"$f":"SUM(F45:O45)","v":0}]
[null,42,null,null,null,null,null,null,null,null,null,null,null,null,null,0]
[null,43,null,null,null,null,null,null,null,null,null,null,null,null,null,{"$f":"SUM(F47:O47)","v":0}]
[null,44,null,null,null,null,null,null,null,null,null,null,null,null,null,0]
[null,45,null,null,null,null,null,null,null,null,null,null,null,null,null,0]
[null,46,null,null,null,null,null,null,null,null,null,null,null,null,null,0]
[null,47,null,null,null,null,null,null,null,null,null,null,null,null,null,0]
[null,48,null,null,null,null,null,null,null,null,null,null,null,null,null,0]
[null,49,null,null,null,null,null,null,null,null,null,null,null,null,null,0]
[null,50,null,null,null,null,null,null,null,null,null,null,null,null,null,0]
[null,51,null,null,null,null,null,null,null,null,null,null,null,null,null,0]
[null,52,null,null,null,null,null,null,null,null,null,null,null,null,null,0]
[null,53,null,null,null,null,null,null,null,null,null,null,null,null,null,0]
[null,54,null,null,null,null,null,null,null,null,null,null,null,null,null,0]
[null,55,null,null,null,null,null,null,null,null,null,null,null,null,null,0]
[null,56,null,null,null,null,null,null,null,null,null,null,null,null,null,0]
[null,57,null,null,null,null,null,null,null,null,null,null,null,null,null,0]
[null,58,null,null,null,null,null,null,null,null,null,null,null,null,null,0]
[null,59,null,null,null,null,null,null,null,null,null,null,null,null,null,0]
[null,60,null,null,null,null,null,null,null,null,null,null,null,null,null,0]
[null,61,null,null,null,null,null,null,null,null,null,null,null,null,null,{"$f":"SUM(F65:O65)","v":0}]
[null,62,null,null,null,null,null,null,null,null,null,null,null,null,null,0]
[null,63,null,null,null,null,null,null,null,null,null,null,null,null,null,0]
[null,64,null,null,null,null,null,null,null,null,null,null,null,null,null,{"$f":"SUM(F68:O68)","v":0}]
[null,65,null,null,null,null,null,null,null,null,null,null,null,null,null,0]
[null,66,null,null,null,null,null,null,null,null,null,null,null,null,null,0]
[null,67,null,null,null,null,null,null,null,null,null,null,null,null,null,0]
[null,68,null,null,null,null,null,null,null,null,null,null,null,null,null,{"$f":"SUM(F72:O72)","v":0}]
[null,69,null,null,null,null,null,null,null,null,null,null,null,null,null,0]
[null,70,null,null,null,null,null,null,null,null,null,null,null,null,null,0]
[null,71,null,null,null,null,null,null,null,null,null,null,null,null,null,0]
[null,72,null,null,null,null,null,null,null,null,null,null,null,null,null,0]
[null,73,null,null,null,null,null,null,null,null,null,null,null,null,null,0]
[null,74,null,null,null,null,null,null,null,null,null,null,null,null,null,0]
[null,75,null,null,null,null,null,null,null,null,null,null,null,null,null,0]
[null,76,null,null,null,null,null,null,null,null,null,null,null,null,null,0]
[null,77,null,null,null,null,null,null,null,null,null,null,null,null,null,0]
[null,78,null,null,null,null,null,null,null,null,null,null,null,null,null,0]
[null,79,null,null,null,null,null,null,null,null,null,null,null,null,null,0]
[null,80,null,null,null,null,null,null,null,null,null,null,null,null,null,0]
[null,81,null,null,null,null,null,null,null,null,null,null,null,null,null,0]
[null,82,null,null,null,null,null,null,null,null,null,null,null,null,null,0]
[null,83,null,null,null,null,null,null,null,null,null,null,null,null,null,0]
[null,84,null,null,null,null,null,null,null,null,null,null,null,null,null,0]
[null,85,null,null,null,null,null,null,null,null,null,null,null,null,null,0]
[null,86,null,null,null,null,null,null,null,null,null,null,null,null,null,0]
[null,87,null,null,null,null,null,null,null,null,null,null,null,null,null,0]
[null,88,null,null,null,null,null,null,null,null,null,null,null,null,null,0]
[null,89,null,null,null,null,null,null,null,null,null,null,null,null,null,0]
[null,90,null,null,null,null,null,null,null,null,null,null,null,null,null,0]
[null,91,null,null,null,null,null,null,null,null,null,null,null,null,null,0]
[null,92,null,null,null,null,null,null,null,null,null,null,null,null,null,0]
[null,93,null,null,null,null,null,null,null,null,null,null,null,null,null,0]
[]
[]
[]
[]
[]
[]
[]
[]
[]
[]
[]
[]
[]
[]
[]
[]
[]
[]
[]
[null,null,null,null,null,null,null,null,null,null,null,null,{"$f":"IF(K117>=60,\"CLASIFICADO A 60 Km LIBRE y 80 Km NOVICIO\",IF(K117>=40,\"CLASIFICADO A 40 Km LIBRE y 60 Km NOVICIO\",\"\"))","v":""}]

{"sheet":"BINOMIOS ABIERTA","index":12,"n_rows":165,"n_cols":17,"rows_kept":165,"cut":false,"hidden":false,"merged":[[1,1,1,16],[2,1,2,16],[4,1,4,3],[4,6,4,16],[5,6,5,16]]}
[]
[null,"PUNTAJE  ACUMULADO"]
[null,"CATEGORÍA BINOMIOS ABIERTA"]
[]
[null,"BINOMIOS ABIERTA",null,null,null,null,"PUNTAJES"]
[null,null,null,null,null,null,2016]
[null,null,"CODIGO","JINETE","CODIGO","CABALLO","I CHONE","II CHONE","III CHONE","IV CHONE","V CHONE","VI CHONE","VII CHONE","VIII CHONE","IX CHONE","X CHONE","ACUMULADO"]
[null,1,"A059","ALMEIDA AYALA HECTOR","C115","AVENTURERO",null,null,null,null,null,null,null,240.2,null,229.9,{"$f":"SUM(G8:P8)","v":470.1}]
[null,2,"A092","VINTIMILLA PABLO ","C252","BIANCA",138.38,null,null,null,null,76,null,228.18999999999997,null,null,442.56999999999994]
[null,3,"A045","MORABOWEN CESAR","C329","SERENATA CMB",null,null,null,null,null,null,null,216.18,null,205.7,421.88]
[null,4,"A172","BURBANO VILLAVICENCIO JAIME","C286","NEGRO EG",null,134.4,null,null,null,128,null,null,null,153.9,416.29999999999995]
[null,5,"A214","MOYA MIGUEL ANGEL","C165","DIAMANTE",null,null,null,134.4,null,128,null,{"$f":"160*0.85","v":136},null,null,398.4]
[null,6,"A055","WEEMAELS NATHALIE ","C413","RO EVITA",162.80000000000001,null,null,null,null,null,null,null,null,162,324.8]
[null,7,"A212","CANGAS GUILLERMO","C437","WOODY",null,null,null,null,64.64,null,null,128,129.6,null,322.24]
[null,8,"A201","ALLAICO JOSE EMILIO","C232","ASRAEL",null,null,null,null,null,80,null,null,null,242,322]
[null,9,"A055","WEEMAELS NATHALIE ","C093","CG ALLASKI",null,null,null,null,320,null,null,null,null,null,320]
[null,10,"A171","VELEZ MENA MARIA CONSUELO","C209","AISHA",130.24,null,null,67.2,null,null,94,null,null,null,291.44]
[null,11,"A177","RAMIREZ FABRICIO","C229","BULERIA",null,null,null,null,null,null,null,128,null,145.80000000000001,273.8]
[null,12,"A192","LOZADA JOSE ARMANDO","C414","GH PSHYRO",null,null,null,null,null,128,null,128,null,null,256]
[null,13,"A045","MORABOWEN CESAR","C229","BULERIA",null,122,null,null,null,null,null,null,129.6,null,251.6]
[null,14,"A215","JAQUELINE DAVIS","C098","BONBON",null,null,null,null,null,null,null,null,null,217.8,217.8]
[null,15,"A179","MANCHENO PAMELA","C217","GERONIMO",null,null,null,null,64.64,null,null,null,129.6,null,194.24]
[null,16,"A097","MALO ANDREA","C441","SANTOO",null,null,null,null,null,128,null,64,null,null,192]
[null,17,"A035","PORTILLA FELIPE","C204","AR ALBATSYN",null,168,null,null,null,null,null,null,null,null,168]
[null,18,"A092","VINTIMILLA PABLO","C074","WISKY",null,null,null,null,null,null,null,null,162,null,162]
[null,19,"A059","ALMEIDA AYALA HECTOR","C097","CENTAURO",null,null,null,null,null,160,null,null,null,null,160]
[null,20,"A057","DAVILA JUAN DIEGO","C405","SOLOANDA",null,null,null,null,null,null,null,160,null,null,160]
[null,21,"A056","MORILLO MAURICIO ","C094","MISTERIO",154.66,null,null,null,null,null,null,null,null,null,154.66]
[null,22,"A018","MANCHENO GALO PATRICIO","C360","PSICOTICO",null,null,null,null,null,null,null,null,153.9,null,153.9]
[null,23,"A033","SERRANO ARMANDO JOSE","C454","MD YALA",null,null,null,null,null,null,null,152,null,null,152]
[null,24,"A033","SERRANO ARMANDO ","C206","AS GITANA",146.52000000000001,null,null,null,null,null,null,null,null,null,146.52000000000001]
[null,25,"A060","RECALDE JUAN JOSE","C098","BOMBON",null,null,null,null,null,null,null,144,null,null,144]
[null,26,"A201","ALLAICO JOSE EMILIO","C439","SAN CARLOS",null,73.600000000000009,null,67.2,null,null,null,null,null,null,140.80000000000001]
[null,27,"A215","COELLAR GONZALEZ PEDRO","C438","MC LUCAS",null,73.600000000000009,null,67.2,null,null,null,null,null,null,140.80000000000001]
[null,28,"A067","CANDO MARIO","C369","AS ANGUS",null,null,null,null,null,null,null,null,68.8,68.8,137.6]
[null,29,"A067","CANDO MARIO","C454","MD YALA",null,null,null,134.4,null,null,null,null,null,null,134.4]
[null,30,"A081","KOPPEL OSWALDO","C282","MAGIC MENES",null,null,null,134.4,null,null,null,null,null,null,134.4]
[null,31,"A059","ALMEIDA AYALA HECTOR ","C114","KAFIR HA",130.24,null,null,null,null,null,null,null,null,null,130.24]
[null,32,"A171","VELEZ MENA MARIA CONSUELO","C234","EL PADRINO",null,null,null,null,null,130,null,null,null,null,130]
[null,33,"A046","MAURICIO  NOBOA","C288","LIA",null,null,null,null,null,null,null,null,null,129.6,{"$f":"SUM(G40:P40)","v":129.6}]
[null,34,"A219","MAHNKE LIESEL","C385","MANDY",null,null,null,null,64.64,64,null,null,null,null,128.63999999999999]
[null,35,"A220","TUTIVEN LUIS","C243","PAVITA",null,null,null,null,64.64,64,null,null,null,null,128.63999999999999]
[null,36,"A125","FALCONI FRANCISCO","C174","ZT SATFANDU",null,null,null,null,128.32000000000002,null,null,null,null,null,128.32000000000002]
[null,37,"A178","JUAN CARLOS ANDRADE","C243","PAVITA",null,null,null,null,null,null,null,null,null,86,86]
[null,38,"J055","LOYOLA CLAUDIA MARIA","C197","PATACON",null,null,null,null,null,80,null,null,null,null,80]
[null,39,"J063","GONZALEZ BERNARDA","C333","KADIN",null,null,null,null,null,76,null,null,null,null,76]
[null,40,"A218","UGALDE LORENA","C444","QUINA",null,73.600000000000009,null,null,null,null,null,null,null,null,73.600000000000009]
[null,41,"A171","VELEZ MENA MARIA CONSUELO","C441","SANTOO",null,73.600000000000009,null,null,null,null,null,null,null,null,73.600000000000009]
[null,42,"A057","DAVILA JUAN DIEGO","C502","MONARCH",null,null,null,null,null,null,null,null,68.8,null,68.8]
[null,43,"A125","FALCONI FRANCISCO","C140","SC SADIQ",null,null,null,null,null,null,null,null,68.8,null,68.8]
[null,44,"A026","JOSE LETORT","C370","JEREZ",null,null,null,null,null,null,null,null,null,68.8,68.8]
[null,45,"A236","JUNE TATE","C372","SHAKIRA CMB",null,null,null,null,null,null,null,null,null,68.8,68.8]
[null,46,"A301","SIMON  PEREZ","C371","BLACK",null,null,null,null,null,null,null,null,null,68.8,68.8]
[null,47,"A200","MALO DIANA","C441","SANTOO",null,null,null,67.2,null,null,null,null,null,null,67.2]
[null,48,"A223","MORENO MILTON GABRIEL","C206","AS GITANA",null,null,null,67.2,null,null,null,null,null,null,67.2]
[null,49,"A218","TRUEBA VICTORIA","C438","MC JULIA",null,null,null,null,64.64,null,null,null,null,null,64.64]
[null,50,"A081","KOPPEL OSWALDO","C405","SOLOANDA",null,null,null,null,null,64,null,null,null,null,64]
[null,51,"A200","MALO DIANA","C461","JULIA CMB",null,null,null,null,null,64,null,null,null,null,64]
[null,52,null,null,null,null,null,null,null,null,null,null,null,null,null,null,{"$f":"SUM(G59:P59)","v":0}]
[null,53,null,null,null,null,null,null,null,null,null,null,null,null,null,null,0]
[null,54,null,null,null,null,null,null,null,null,null,null,null,null,null,null,0]
[null,55,null,null,null,null,null,null,null,null,null,null,null,null,null,null,0]
[null,56,null,null,null,null,null,null,null,null,null,null,null,null,null,null,0]
[null,57,null,null,null,null,null,null,null,null,null,null,null,null,null,null,0]
[null,58,null,null,null,null,null,null,null,null,null,null,null,null,null,null,0]
[null,59,null,null,null,null,null,null,null,null,null,null,null,null,null,null,0]
[null,60,null,null,null,null,null,null,null,null,null,null,null,null,null,null,0]
[null,61,null,null,null,null,null,null,null,null,null,null,null,null,null,null,0]
[null,62,null,null,null,null,null,null,null,null,null,null,null,null,null,null,0]
[null,63,null,null,null,null,null,null,null,null,null,null,null,null,null,null,0]
[null,64,null,null,null,null,null,null,null,null,null,null,null,null,null,null,0]
[null,65,null,null,null,null,null,null,null,null,null,null,null,null,null,null,{"$f":"SUM(G72:P72)","v":0}]
[null,66,null,null,null,null,null,null,null,null,null,null,null,null,null,null,0]
[null,67,null,null,null,null,null,null,null,null,null,null,null,null,null,null,0]
[null,68,null,null,null,null,null,null,null,null,null,null,null,null,null,null,{"$f":"SUM(G75:P75)","v":0}]
[null,69,null,null,null,null,null,null,null,null,null,null,null,null,null,null,0]
[null,70,null,null,null,null,null,null,null,null,null,null,null,null,null,null,0]
[null,71,null,null,null,null,null,null,null,null,null,null,null,null,null,null,0]
[null,72,null,null,null,null,null,null,null,null,null,null,null,null,null,null,0]
[null,73,null,null,null,null,null,null,null,null,null,null,null,null,null,null,0]
[null,74,null,null,null,null,null,null,null,null,null,null,null,null,null,null,0]
[null,75,null,null,null,null,null,null,null,null,null,null,null,null,null,null,0]
[null,76,null,null,null,null,null,null,null,null,null,null,null,null,null,null,0]
[null,77,null,null,null,null,null,null,null,null,null,null,null,null,null,null,0]
[null,78,null,null,null,null,null,null,null,null,null,null,null,null,null,null,0]
[null,79,null,null,null,null,null,null,null,null,null,null,null,null,null,null,0]
[null,80,null,null,null,null,null,null,null,null,null,null,null,null,null,null,0]
[null,81,null,null,null,null,null,null,null,null,null,null,null,null,null,null,0]
[null,82,null,null,null,null,null,null,null,null,null,null,null,null,null,null,0]
[null,83,null,null,null,null,null,null,null,null,null,null,null,null,null,null,0]
[null,84,null,null,null,null,null,null,null,null,null,null,null,null,null,null,0]
[null,85,null,null,null,null,null,null,null,null,null,null,null,null,null,null,0]
[null,86,null,null,null,null,null,null,null,null,null,null,null,null,null,null,0]
[null,87,null,null,null,null,null,null,null,null,null,null,null,null,null,null,0]
[null,88,null,null,null,null,null,null,null,null,null,null,null,null,null,null,0]
[null,89,null,null,null,null,null,null,null,null,null,null,null,null,null,null,0]
[null,90,null,null,null,null,null,null,null,null,null,null,null,null,null,null,0]
[null,91,null,null,null,null,null,null,null,null,null,null,null,null,null,null,0]
[null,92,null,null,null,null,null,null,null,null,null,null,null,null,null,null,0]
[null,93,null,null,null,null,null,null,null,null,null,null,null,null,null,null,0]
[null,94,null,null,null,null,null,null,null,null,null,null,null,null,null,null,0]
[null,95,null,null,null,null,null,null,null,null,null,null,null,null,null,null,0]
[null,96,null,null,null,null,null,null,null,null,null,null,null,null,null,null,0]
[null,97,null,null,null,null,null,null,null,null,null,null,null,null,null,null,0]
[null,98,null,null,null,null,null,null,null,null,null,null,null,null,null,null,0]
[null,99,null,null,null,null,null,null,null,null,null,null,null,null,null,null,0]
[null,100,null,null,null,null,null,null,null,null,null,null,null,null,null,null,0]
[null,101,null,null,null,null,null,null,null,null,null,null,null,null,null,null,0]
[null,102,null,null,null,null,null,null,null,null,null,null,null,null,null,null,0]
[null,103,null,null,null,null,null,null,null,null,null,null,null,null,null,null,0]
[null,104,null,null,null,null,null,null,null,null,null,null,null,null,null,null,0]
[null,105,null,null,null,null,null,null,null,null,null,null,null,null,null,null,0]
[null,106,null,null,null,null,null,null,null,null,null,null,null,null,null,null,0]
[null,107,null,null,null,null,null,null,null,null,null,null,null,null,null,null,0]
[null,108,null,null,null,null,null,null,null,null,null,null,null,null,null,null,0]
[null,109,null,null,null,null,null,null,null,null,null,null,null,null,null,null,0]
[null,110,null,null,null,null,null,null,null,null,null,null,null,null,null,null,0]
[null,111,null,null,null,null,null,null,null,null,null,null,null,null,null,null,0]
[null,112,null,null,null,null,null,null,null,null,null,null,null,null,null,null,0]
[null,113,null,null,null,null,null,null,null,null,null,null,null,null,null,null,0]
[null,114,null,null,null,null,null,null,null,null,null,null,null,null,null,null,0]
[null,115,null,null,null,null,null,null,null,null,null,null,null,null,null,null,0]
[null,116,null,null,null,null,null,null,null,null,null,null,null,null,null,null,0]
[null,117,null,null,null,null,null,null,null,null,null,null,null,null,null,null,0]
[null,118,null,null,null,null,null,null,null,null,null,null,null,null,null,null,0]
[null,119,null,null,null,null,null,null,null,null,null,null,null,null,null,null,0]
[null,120,null,null,null,null,null,null,null,null,null,null,null,null,null,null,0]
[null,121,null,null,null,null,null,null,null,null,null,null,null,null,null,null,0]
[null,122,null,null,null,null,null,null,null,null,null,null,null,null,null,null,0]
[null,123,null,null,null,null,null,null,null,null,null,null,null,null,null,null,0]
[null,124,null,null,null,null,null,null,null,null,null,null,null,null,null,null,0]
[null,125,null,null,null,null,null,null,null,null,null,null,null,null,null,null,0]
[null,126,null,null,null,null,null,null,null,null,null,null,null,null,null,null,0]
[null,127,null,null,null,null,null,null,null,null,null,null,null,null,null,null,0]
[null,128,null,null,null,null,null,null,null,null,null,null,null,null,null,null,0]
[null,129,null,null,null,null,null,null,null,null,null,null,null,null,null,null,0]
[null,130,null,null,null,null,null,null,null,null,null,null,null,null,null,null,{"$f":"SUM(G137:P137)","v":0}]
[null,131,null,null,null,null,null,null,null,null,null,null,null,null,null,null,0]
[null,132,null,null,null,null,null,null,null,null,null,null,null,null,null,null,0]
[null,133,null,null,null,null,null,null,null,null,null,null,null,null,null,null,0]
[null,134,null,null,null,null,null,null,null,null,null,null,null,null,null,null,0]
[null,135,null,null,null,null,null,null,null,null,null,null,null,null,null,null,0]
[null,136,null,null,null,null,null,null,null,null,null,null,null,null,null,null,0]
[null,137,null,null,null,null,null,null,null,null,null,null,null,null,null,null,0]
[null,138,null,null,null,null,null,null,null,null,null,null,null,null,null,null,0]
[]
[]
[]
[]
[]
[]
[]
[]
[]
[]
[]
[]
[]
[]
[]
[]
[]
[]
[]
[null,null,null,null,null,null,null,null,null,null,null,null,null,{"$f":"IF(L165>=60,\"CLASIFICADO A 60 Km LIBRE y 80 Km NOVICIO\",IF(L165>=40,\"CLASIFICADO A 40 Km LIBRE y 60 Km NOVICIO\",\"\"))","v":""}]

{"sheet":"BINOMIOS LIVIANOS","index":13,"n_rows":165,"n_cols":17,"rows_kept":165,"cut":false,"hidden":false,"merged":[[1,1,1,16],[2,1,2,16],[4,1,4,3],[4,6,4,16],[5,6,5,16]]}
[]
[null,"PUNTAJE  ACUMULADO"]
[null,"CATEGORÍA BINOMIOS LIVIANOS"]
[]
[null,"BINOMIOS LIVIANOS",null,null,null,null,"PUNTAJES"]
[null,null,null,null,null,null,2016]
[null,null,"CODIGO","JINETE","CODIGO","CABALLO","I CHONE","II CHONE","III CHONE","IV CHONE","V CHONE","VI CHONE","VII CHONE","VIII CHONE","IX CHONE","X CHONE","ACUMULADO"]
[null,1,"M047","MORABOWEN MOSQUERA CESAR","C238","CALEÑA CMB",122,126.80000000000001,null,null,128.32000000000002,null,null,128,162,162,{"$f":"SUM(G8:P8)-G8-H8","v":580.31999999999994}]
[null,2,"J063","GONZALEZ BERNARDA","C333","KADIN",null,null,null,null,null,76,null,null,162,242,{"$f":"SUM(G9:P9)","v":480}]
[null,3,"J063","GONZALEZ BERNARDA","C394","POLACO",134.4,null,null,134.4,null,null,null,152,null,null,420.8]
[null,4,"J055","LOYOLA CLAUDIA MARIA","C404","KALA",168,null,null,84,160.4,null,null,null,null,null,412.4]
[null,5,"J034","ANDRADE JOSE DANIEL","C424","ANGOSTURA FRODO",null,null,null,null,320,null,null,null,null,null,320]
[null,6,"J020","SERRANO FELIPE","C136","FHARA CONEJA",null,null,null,null,160,null,null,160,null,null,320]
[null,7,"J096","LOYOLA TEODORO ANDRES","C209","AISHA",0.30208333333333331,0.64822916666666663,0.2628125,3.3873456790124066E-3,144,null,null,144,null,null,289.21651234567901]
[null,8,"M051","DAVALOS JORGE EDUARDO","C101","CARAMELO CMB",73.600000000000009,68.960000000000008,null,null,64.64,null,null,64,null,null,271.2]
[null,9,"J055","LOYOLA CLAUDIA MARIA","C197","PATACON",null,null,null,null,null,80,null,null,null,162,242]
[null,10,"J034","ANDRADE JOSE DANIEL","C406","ELECTRIFY VO",134.4,null,null,null,null,64,null,null,null,null,198.4]
[null,11,"J008","GOMEZ ALEXANDER","C436","TAKARI CSE",null,null,null,null,64.64,null,null,null,null,129.6,194.24]
[null,12,"J034","ANDRADE JOSE DANIEL","C134","JUPITER",null,null,null,168,null,null,null,null,null,null,168]
[null,13,"J096","LOYOLA TEODORO ANDRES","C234","EL PADRINO",null,null,null,null,null,null,null,null,null,153.9,153.9]
[null,14,"J063","GONZALES BERNARDA","C004","TEQUILA",null,null,null,null,152.38,null,null,null,null,null,152.38]
[null,15,"J021","CORNEJO MANUEL","C206","AS GITANA",null,null,null,null,144.36000000000001,null,null,null,null,null,144.36000000000001]
[null,16,"J111","DAVALOS JOAQUINA","C445","ANGOSTURA FRODO",134.4,null,null,null,null,null,null,null,null,null,134.4]
[null,17,"J109","DARQUEA ANA MARIA ","C387","AGUARDIENTICO",130.24,null,null,null,null,null,null,null,null,null,130.24]
[null,18,"J108","DAVALOS JOAQUINA ","C175","CLAW",130.24,null,null,null,null,null,null,null,null,null,130.24]
[null,19,"J079","JARAMILLO MANUELA ","C404","SALMA",130.24,null,null,null,null,null,null,null,null,null,130.24]
[null,20,"J114","MAZAPANTA KEVIN","C085","BLACK",130.24,null,null,null,null,null,null,null,null,null,130.24]
[null,21,"J020","SERRANO MANUELA ","C427","FLACA",130.24,null,null,null,null,null,null,null,null,null,130.24]
[null,22,"J118","SALTIVERI MARIA JESUS","C334","CAPORAL",null,null,null,null,null,null,null,null,null,null,129.6]
[null,23,"J200","MAZAPANTA LUIS","C376","NABU",null,null,null,null,null,null,null,null,null,129.6,{"$f":"SUM(G30:P30)","v":129.6}]
[null,24,"J011","LETORT BERNARDA","C154","SHAKIRA",null,null,null,null,null,null,null,null,126,null,126]
[null,25,"J095","BERREZUETA PABLO SANTIAGO","C130","ESPIRITU DEL ECUADOR",null,null,null,null,null,null,null,80,null,null,80]
[null,26,"J100","HURTADO HECTOR","C074","WISKY",null,null,null,null,null,null,null,76,null,null,76]
[null,27,"J096","LOYOLA TEODORO ANDRES","C443","ZAHIRA",73.600000000000009,null,null,null,null,null,null,null,null,null,73.600000000000009]
[null,28,"J021","CORNEJO MANUEL","C418","NABU",68.960000000000008,null,null,null,null,null,null,null,null,null,68.960000000000008]
[null,29,"J065","ESPINOZA BARBARA","C188","ANGOSTURA FRODO",68.960000000000008,null,null,null,null,null,null,null,null,null,68.960000000000008]
[null,30,"J112","LEON JUAN","C417","MANDI CMB",68.960000000000008,null,null,null,null,null,null,null,null,null,68.960000000000008]
[null,31,"J200","MAZAPANTA LUIS","C416","CARRUZO",68.960000000000008,null,null,null,null,null,null,null,null,null,68.960000000000008]
[null,32,"J096","LOYOLA TEODORO ANDRES","C278","JUGUETE",null,null,null,67.2,null,null,null,null,null,null,67.2]
[null,33,"J112","PAREDES EDWIN","C085","BLACK",null,null,null,null,64.64,null,null,null,null,null,64.64]
[null,34,"A241","AYMARA SANDRO","C446","MANDY",null,null,null,null,null,null,null,64,null,null,64]
[null,35,"J117","CANDELARIO ARREAGA WAGNER","C462","SERENA",null,null,null,null,null,64,null,null,null,null,64]
[null,36,"J099","DARQUEA ANA MARIA","C459","GALAN AMDD",null,null,null,null,null,64,null,null,null,null,64]
[null,37,null,null,null,null,null,null,null,null,null,null,null,null,null,null,{"$f":"SUM(G44:P44)","v":0}]
[null,38,null,null,null,null,null,null,null,null,null,null,null,null,null,null,0]
[null,39,null,null,null,null,null,null,null,null,null,null,null,null,null,null,0]
[null,40,null,null,null,null,null,null,null,null,null,null,null,null,null,null,0]
[null,41,null,null,null,null,null,null,null,null,null,null,null,null,null,null,0]
[null,42,null,null,null,null,null,null,null,null,null,null,null,null,null,null,0]
[null,43,null,null,null,null,null,null,null,null,null,null,null,null,null,null,0]
[null,44,null,null,null,null,null,null,null,null,null,null,null,null,null,null,0]
[null,45,null,null,null,null,null,null,null,null,null,null,null,null,null,null,0]
[null,46,null,null,null,null,null,null,null,null,null,null,null,null,null,null,0]
[null,47,null,null,null,null,null,null,null,null,null,null,null,null,null,null,0]
[null,48,null,null,null,null,null,null,null,null,null,null,null,null,null,null,0]
[null,49,null,null,null,null,null,null,null,null,null,null,null,null,null,null,0]
[null,50,null,null,null,null,null,null,null,null,null,null,null,null,null,null,0]
[null,51,null,null,null,null,null,null,null,null,null,null,null,null,null,null,0]
[null,52,null,null,null,null,null,null,null,null,null,null,null,null,null,null,0]
[null,53,null,null,null,null,null,null,null,null,null,null,null,null,null,null,0]
[null,54,null,null,null,null,null,null,null,null,null,null,null,null,null,null,0]
[null,55,null,null,null,null,null,null,null,null,null,null,null,null,null,null,0]
[null,56,null,null,null,null,null,null,null,null,null,null,null,null,null,null,0]
[null,57,null,null,null,null,null,null,null,null,null,null,null,null,null,null,0]
[null,58,null,null,null,null,null,null,null,null,null,null,null,null,null,null,0]
[null,59,null,null,null,null,null,null,null,null,null,null,null,null,null,null,0]
[null,60,null,null,null,null,null,null,null,null,null,null,null,null,null,null,0]
[null,61,null,null,null,null,null,null,null,null,null,null,null,null,null,null,0]
[null,62,null,null,null,null,null,null,null,null,null,null,null,null,null,null,0]
[null,63,null,null,null,null,null,null,null,null,null,null,null,null,null,null,0]
[null,64,null,null,null,null,null,null,null,null,null,null,null,null,null,null,{"$f":"SUM(G71:P71)","v":0}]
[null,65,null,null,null,null,null,null,null,null,null,null,null,null,null,null,0]
[null,66,null,null,null,null,null,null,null,null,null,null,null,null,null,null,0]
[null,67,null,null,null,null,null,null,null,null,null,null,null,null,null,null,0]
[null,68,null,null,null,null,null,null,null,null,null,null,null,null,null,null,0]
[null,69,null,null,null,null,null,null,null,null,null,null,null,null,null,null,0]
[null,70,null,null,null,null,null,null,null,null,null,null,null,null,null,null,0]
[null,71,null,null,null,null,null,null,null,null,null,null,null,null,null,null,0]
[null,72,null,null,null,null,null,null,null,null,null,null,null,null,null,null,0]
[null,73,null,null,null,null,null,null,null,null,null,null,null,null,null,null,0]
[null,74,null,null,null,null,null,null,null,null,null,null,null,null,null,null,0]
[null,75,null,null,null,null,null,null,null,null,null,null,null,null,null,null,0]
[null,76,null,null,null,null,null,null,null,null,null,null,null,null,null,null,0]
[null,77,null,null,null,null,null,null,null,null,null,null,null,null,null,null,0]
[null,78,null,null,null,null,null,null,null,null,null,null,null,null,null,null,0]
[null,79,null,null,null,null,null,null,null,null,null,null,null,null,null,null,0]
[null,80,null,null,null,null,null,null,null,null,null,null,null,null,null,null,0]
[null,81,null,null,null,null,null,null,null,null,null,null,null,null,null,null,0]
[null,82,null,null,null,null,null,null,null,null,null,null,null,null,null,null,0]
[null,83,null,null,null,null,null,null,null,null,null,null,null,null,null,null,0]
[null,84,null,null,null,null,null,null,null,null,null,null,null,null,null,null,0]
[null,85,null,null,null,null,null,null,null,null,null,null,null,null,null,null,0]
[null,86,null,null,null,null,null,null,null,null,null,null,null,null,null,null,0]
[null,87,null,null,null,null,null,null,null,null,null,null,null,null,null,null,0]
[null,88,null,null,null,null,null,null,null,null,null,null,null,null,null,null,0]
[null,89,null,null,null,null,null,null,null,null,null,null,null,null,null,null,0]
[null,90,null,null,null,null,null,null,null,null,null,null,null,null,null,null,0]
[null,91,null,null,null,null,null,null,null,null,null,null,null,null,null,null,0]
[null,92,null,null,null,null,null,null,null,null,null,null,null,null,null,null,0]
[null,93,null,null,null,null,null,null,null,null,null,null,null,null,null,null,0]
[null,94,null,null,null,null,null,null,null,null,null,null,null,null,null,null,0]
[null,95,null,null,null,null,null,null,null,null,null,null,null,null,null,null,0]
[null,96,null,null,null,null,null,null,null,null,null,null,null,null,null,null,0]
[null,97,null,null,null,null,null,null,null,null,null,null,null,null,null,null,0]
[null,98,null,null,null,null,null,null,null,null,null,null,null,null,null,null,0]
[null,99,null,null,null,null,null,null,null,null,null,null,null,null,null,null,0]
[null,100,null,null,null,null,null,null,null,null,null,null,null,null,null,null,0]
[null,101,null,null,null,null,null,null,null,null,null,null,null,null,null,null,0]
[null,102,null,null,null,null,null,null,null,null,null,null,null,null,null,null,0]
[null,103,null,null,null,null,null,null,null,null,null,null,null,null,null,null,0]
[null,104,null,null,null,null,null,null,null,null,null,null,null,null,null,null,0]
[null,105,null,null,null,null,null,null,null,null,null,null,null,null,null,null,0]
[null,106,null,null,null,null,null,null,null,null,null,null,null,null,null,null,0]
[null,107,null,null,null,null,null,null,null,null,null,null,null,null,null,null,0]
[null,108,null,null,null,null,null,null,null,null,null,null,null,null,null,null,0]
[null,109,null,null,null,null,null,null,null,null,null,null,null,null,null,null,0]
[null,110,null,null,null,null,null,null,null,null,null,null,null,null,null,null,0]
[null,111,null,null,null,null,null,null,null,null,null,null,null,null,null,null,0]
[null,112,null,null,null,null,null,null,null,null,null,null,null,null,null,null,0]
[null,113,null,null,null,null,null,null,null,null,null,null,null,null,null,null,0]
[null,114,null,null,null,null,null,null,null,null,null,null,null,null,null,null,0]
[null,115,null,null,null,null,null,null,null,null,null,null,null,null,null,null,0]
[null,116,null,null,null,null,null,null,null,null,null,null,null,null,null,null,0]
[null,117,null,null,null,null,null,null,null,null,null,null,null,null,null,null,0]
[null,118,null,null,null,null,null,null,null,null,null,null,null,null,null,null,0]
[null,119,null,null,null,null,null,null,null,null,null,null,null,null,null,null,0]
[null,120,null,null,null,null,null,null,null,null,null,null,null,null,null,null,0]
[null,121,null,null,null,null,null,null,null,null,null,null,null,null,null,null,0]
[null,122,null,null,null,null,null,null,null,null,null,null,null,null,null,null,0]
[null,123,null,null,null,null,null,null,null,null,null,null,null,null,null,null,0]
[null,124,null,null,null,null,null,null,null,null,null,null,null,null,null,null,0]
[null,125,null,null,null,null,null,null,null,null,null,null,null,null,null,null,0]
[null,126,null,null,null,null,null,null,null,null,null,null,null,null,null,null,0]
[null,127,null,null,null,null,null,null,null,null,null,null,null,null,null,null,0]
[null,128,null,null,null,null,null,null,null,null,null,null,null,null,null,null,{"$f":"SUM(G135:P135)","v":0}]
[null,129,null,null,null,null,null,null,null,null,null,null,null,null,null,null,0]
[null,130,null,null,null,null,null,null,null,null,null,null,null,null,null,null,0]
[null,131,null,null,null,null,null,null,null,null,null,null,null,null,null,null,0]
[null,132,null,null,null,null,null,null,null,null,null,null,null,null,null,null,0]
[null,133,null,null,null,null,null,null,null,null,null,null,null,null,null,null,0]
[null,134,null,null,null,null,null,null,null,null,null,null,null,null,null,null,0]
[null,135,null,null,null,null,null,null,null,null,null,null,null,null,null,null,0]
[null,136,null,null,null,null,null,null,null,null,null,null,null,null,null,null,0]
[null,137,null,null,null,null,null,null,null,null,null,null,null,null,null,null,0]
[null,138,null,null,null,null,null,null,null,null,null,null,null,null,null,null,0]
[]
[]
[]
[]
[]
[]
[]
[]
[]
[]
[]
[]
[]
[]
[]
[]
[]
[]
[]
[null,null,null,null,null,null,null,null,null,null,null,null,null,{"$f":"IF(L165>=60,\"CLASIFICADO A 60 Km LIBRE y 80 Km NOVICIO\",IF(L165>=40,\"CLASIFICADO A 40 Km LIBRE y 60 Km NOVICIO\",\"\"))","v":""}]

{"sheet":"PR MASTER","index":14,"n_rows":55,"n_cols":15,"rows_kept":55,"cut":false,"hidden":false,"merged":[[1,1,1,14],[2,1,2,14],[4,1,4,3],[4,4,4,14],[5,4,5,14]]}
[]
[null,"PUNTAJE  ACUMULADO"]
[null,"CATEGORÍA PROMOCIONAL ABIERTA"]
[]
[null,"PROMOCIONAL MASTER",null,null,"PUNTAJES"]
[null,null,null,null,2016]
[null,null,"CODIGO","JINETE","I CHONE","II CHONE","III CHONE","IV CHONE","V CHONE","VI CHONE","VII CHONE","VIII CHONE","IX CHONE","X CHONE","ACUMULADO"]
[null,1,"A024","RECALDE GALO",null,null,null,null,64.64,null,null,null,null,null,{"$f":"SUM(E8:N8)","v":64.64}]
[null,2,null,null,null,null,null,null,null,null,null,null,null,null,0]
[null,3,null,null,null,null,null,null,null,null,null,null,null,null,0]
[null,4,null,null,null,null,null,null,null,null,null,null,null,null,0]
[null,5,null,null,null,null,null,null,null,null,null,null,null,null,0]
[null,6,null,null,null,null,null,null,null,null,null,null,null,null,0]
[null,7,null,null,null,null,null,null,null,null,null,null,null,null,0]
[null,8,null,null,null,null,null,null,null,null,null,null,null,null,0]
[null,9,null,null,null,null,null,null,null,null,null,null,null,null,0]
[null,10,null,null,null,null,null,null,null,null,null,null,null,null,0]
[null,11,null,null,null,null,null,null,null,null,null,null,null,null,0]
[null,12,null,null,null,null,null,null,null,null,null,null,null,null,0]
[null,13,null,null,null,null,null,null,null,null,null,null,null,null,0]
[null,14,null,null,null,null,null,null,null,null,null,null,null,null,0]
[null,15,null,null,null,null,null,null,null,null,null,null,null,null,{"$f":"SUM(E22:N22)","v":0}]
[null,16,null,null,null,null,null,null,null,null,null,null,null,null,0]
[null,17,null,null,null,null,null,null,null,null,null,null,null,null,0]
[null,18,null,null,null,null,null,null,null,null,null,null,null,null,0]
[null,19,null,null,null,null,null,null,null,null,null,null,null,null,0]
[null,20,null,null,null,null,null,null,null,null,null,null,null,null,0]
[null,21,null,null,null,null,null,null,null,null,null,null,null,null,0]
[null,22,null,null,null,null,null,null,null,null,null,null,null,null,0]
[null,23,null,null,null,null,null,null,null,null,null,null,null,null,0]
[null,24,null,null,null,null,null,null,null,null,null,null,null,null,0]
[null,25,null,null,null,null,null,null,null,null,null,null,null,null,0]
[null,26,null,null,null,null,null,null,null,null,null,null,null,null,0]
[null,27,null,null,null,null,null,null,null,null,null,null,null,null,0]
[null,28,null,null,null,null,null,null,null,null,null,null,null,null,0]
[]
[null,null,null,null,null,null,null,null,null,null,null,{"$f":"IF(J37>=60,\"CLASIFICADO A 60 Km LIBRE y 80 Km NOVICIO\",IF(J37>=40,\"CLASIFICADO A 40 Km LIBRE y 60 Km NOVICIO\",\"\"))","v":""}]
[]
[]
[]
[]
[]
[]
[]
[]
[]
[]
[]
[]
[]
[]
[]
[]
[]
[null,null,null,null,null,null,null,null,null,null,null,{"$f":"IF(J55>=60,\"CLASIFICADO A 60 Km LIBRE y 80 Km NOVICIO\",IF(J55>=40,\"CLASIFICADO A 40 Km LIBRE y 60 Km NOVICIO\",\"\"))","v":""}]

{"sheet":"PR ABIERTA","index":15,"n_rows":55,"n_cols":15,"rows_kept":55,"cut":false,"hidden":false,"merged":[[1,1,1,14],[2,1,2,14],[4,1,4,3],[4,4,4,14],[5,4,5,14]]}
[]
[null,"PUNTAJE  ACUMULADO"]
[null,"CATEGORÍA PROMOCIONAL ABIERTA"]
[]
[null,"PROMOCIONAL ABIERTA",null,null,"PUNTAJES"]
[null,null,null,null,2016]
[null,null,"CODIGO","JINETE","I CHONE","II CHONE","III CHONE","IV CHONE","V CHONE","VI CHONE","VII CHONE","VIII CHONE","IX CHONE","X CHONE","ACUMULADO"]
[null,1,"A247","ESTRADA CARLOS",null,null,null,null,32.32,null,null,null,68.8,68.8,{"$f":"SUM(E8:N8)","v":169.92000000000002}]
[null,2,"A196","MONCAYO FERNANDO",null,null,null,null,58.176000000000002,null,null,null,65.36,null,123.536]
[null,3,"A089","ORTIZ FERNANDO",68.960000000000008,null,null,null,null,null,null,null,null,null,68.960000000000008]
[null,4,"A010","HIDALGO GUSTAVO",65.512,null,null,null,null,null,null,null,null,null,65.512]
[null,5,"A213","MARIO ROSAS",null,null,null,null,null,null,null,null,null,65.36,65.36]
[null,6,"A213","ROSAS MARIO",null,null,null,null,64.64,null,null,null,null,null,64.64]
[null,7,"A197","CORO CH RODRIGO",null,null,null,null,null,null,null,null,32,32,64]
[null,8,"A065","MENESES FELIPE",62.064,null,null,null,null,null,null,null,null,null,62.064]
[null,9,"A050","ALZAMORA MA CECILIA",null,null,null,null,61.407999999999994,null,null,null,null,null,61.407999999999994]
[null,10,"A103","CANDELEJO NELSON",null,null,null,null,54.943999999999996,null,null,null,null,null,54.943999999999996]
[null,11,"A216","MORILLLO VALENTINA",32.480000000000004,null,null,null,null,null,null,null,null,null,32.480000000000004]
[null,12,"A217","QUIÑONES DIEGO MARTIN",30.856000000000002,null,null,null,null,null,null,null,null,null,30.856000000000002]
[null,13,"A216","CABEZAS OSCAR",null,null,null,null,30.703999999999997,null,null,null,null,null,30.703999999999997]
[null,14,"A248","NOROÑA JESSICA",null,null,null,null,null,null,null,null,30.4,null,30.4]
[null,15,"A218","MANCHENO DANIEL",29.231999999999999,null,null,null,null,null,null,null,null,null,29.231999999999999]
[null,16,"A217","DE MORA HENRY",null,null,null,null,29.088000000000001,null,null,null,null,null,29.088000000000001]
[null,17,"A219","DAVALOS EDUARDO",27.608000000000001,null,null,null,null,null,null,null,null,null,27.608000000000001]
[null,18,null,null,null,null,null,null,null,null,null,null,null,null,{"$f":"SUM(E25:N25)","v":0}]
[null,19,null,null,null,null,null,null,null,null,null,null,null,null,0]
[null,20,null,null,null,null,null,null,null,null,null,null,null,null,0]
[null,21,null,null,null,null,null,null,null,null,null,null,null,null,0]
[null,22,null,null,null,null,null,null,null,null,null,null,null,null,0]
[null,23,null,null,null,null,null,null,null,null,null,null,null,null,0]
[null,24,null,null,null,null,null,null,null,null,null,null,null,null,0]
[null,25,null,null,null,null,null,null,null,null,null,null,null,null,0]
[null,26,null,null,null,null,null,null,null,null,null,null,null,null,0]
[null,27,null,null,null,null,null,null,null,null,null,null,null,null,0]
[null,28,null,null,null,null,null,null,null,null,null,null,null,null,0]
[]
[null,null,null,null,null,null,null,null,null,null,null,{"$f":"IF(J37>=60,\"CLASIFICADO A 60 Km LIBRE y 80 Km NOVICIO\",IF(J37>=40,\"CLASIFICADO A 40 Km LIBRE y 60 Km NOVICIO\",\"\"))","v":""}]
[]
[]
[]
[]
[]
[]
[]
[]
[]
[]
[]
[]
[]
[]
[]
[]
[]
[null,null,null,null,null,null,null,null,null,null,null,{"$f":"IF(J55>=60,\"CLASIFICADO A 60 Km LIBRE y 80 Km NOVICIO\",IF(J55>=40,\"CLASIFICADO A 40 Km LIBRE y 60 Km NOVICIO\",\"\"))","v":""}]

{"sheet":"PR JUVENIL","index":16,"n_rows":50,"n_cols":15,"rows_kept":50,"cut":false,"hidden":false,"merged":[[1,1,1,14],[2,1,2,14],[4,1,4,3],[4,4,4,14],[5,4,5,14]]}
[]
[null,"PUNTAJE  ACUMULADO"]
[null,"CATEGORÍA PROMOCIONAL JUVENIL"]
[]
[null,"PROMOCIONAL JUVENIL",null,null,"PUNTAJES"]
[null,null,null,null,2016]
[null,null,"CODIGO","JINETE","I CHONE","II CHONE","III CHONE","IV CHONE","V CHONE","VI CHONE","VII CHONE","VIII CHONE","IX CHONE","X CHONE","ACUMULADO"]
[null,1,"J105","NOROÑA JORDAN",null,null,null,null,null,null,null,null,68.8,null,{"$f":"SUM(E8:N8)","v":68.8}]
[null,2,"J040","GABRIEL DARQUEA",null,null,null,null,null,null,null,null,null,68.8,68.8]
[null,3,"J116","BARBARA ESPINOZA",null,null,null,null,null,null,null,null,null,65.36,65.36]
[null,4,"J115","JHON CANDELEJO",null,null,null,null,null,null,null,null,null,32,32]
[null,5,null,null,null,null,null,null,null,null,null,null,null,null,0]
[null,6,null,null,null,null,null,null,null,null,null,null,null,null,0]
[null,7,null,null,null,null,null,null,null,null,null,null,null,null,0]
[null,8,null,null,null,null,null,null,null,null,null,null,null,null,0]
[null,9,null,null,null,null,null,null,null,null,null,null,null,null,0]
[null,10,null,null,null,null,null,null,null,null,null,null,null,null,0]
[null,11,null,null,null,null,null,null,null,null,null,null,null,null,0]
[null,12,null,null,null,null,null,null,null,null,null,null,null,null,0]
[null,13,null,null,null,null,null,null,null,null,null,null,null,null,{"$f":"SUM(E20:N20)","v":0}]
[null,14,null,null,null,null,null,null,null,null,null,null,null,null,0]
[null,15,null,null,null,null,null,null,null,null,null,null,null,null,0]
[null,16,null,null,null,null,null,null,null,null,null,null,null,null,0]
[null,17,null,null,null,null,null,null,null,null,null,null,null,null,0]
[null,18,null,null,null,null,null,null,null,null,null,null,null,null,0]
[null,19,null,null,null,null,null,null,null,null,null,null,null,null,0]
[null,20,null,null,null,null,null,null,null,null,null,null,null,null,0]
[null,21,null,null,null,null,null,null,null,null,null,null,null,null,0]
[null,22,null,null,null,null,null,null,null,null,null,null,null,null,0]
[null,23,null,null,null,null,null,null,null,null,null,null,null,null,0]
[]
[null,null,null,null,null,null,null,null,null,null,null,{"$f":"IF(J32>=60,\"CLASIFICADO A 60 Km LIBRE y 80 Km NOVICIO\",IF(J32>=40,\"CLASIFICADO A 40 Km LIBRE y 60 Km NOVICIO\",\"\"))","v":""}]
[]
[]
[]
[]
[]
[]
[]
[]
[]
[]
[]
[]
[]
[]
[]
[]
[]
[null,null,null,null,null,null,null,null,null,null,null,{"$f":"IF(J50>=60,\"CLASIFICADO A 60 Km LIBRE y 80 Km NOVICIO\",IF(J50>=40,\"CLASIFICADO A 40 Km LIBRE y 60 Km NOVICIO\",\"\"))","v":""}]

{"sheet":"PR MENORES","index":17,"n_rows":50,"n_cols":15,"rows_kept":50,"cut":false,"hidden":false,"merged":[[1,1,1,14],[2,1,2,14],[4,1,4,3],[4,4,4,14],[5,4,5,14]]}
[]
[null,"PUNTAJE  ACUMULADO"]
[null,"CATEGORÍA PROMOCIONAL MENORES"]
[]
[null,"PROMOCIONAL MENORES",null,null,"PUNTAJES"]
[null,null,null,null,2016]
[null,null,"CODIGO","JINETE","I CHONE","II CHONE","III CHONE","IV CHONE","V CHONE","VI CHONE","VII CHONE","VIII CHONE","IX CHONE","X CHONE","ACUMULADO"]
[null,1,"M028","CORREA JUAN MARTIN",null,null,null,null,null,null,null,null,28.8,32,{"$f":"SUM(E8:N8)","v":60.8}]
[null,2,"M031","ESPINOZA NATALIA",null,null,null,null,58.176000000000002,null,null,null,null,null,{"$f":"SUM(E9:N9)","v":58.176000000000002}]
[null,3,"I019","CASTILLO DAFNE",null,null,null,null,null,null,null,null,32,null,{"$f":"SUM(E10:N10)","v":32}]
[null,4,"I044","MOYA MILENA",null,null,null,null,null,null,null,null,30.4,null,{"$f":"SUM(E11:N11)","v":30.4}]
[null,5,null,null,null,null,null,null,null,null,null,null,null,null,{"$f":"SUM(E12:N12)","v":0}]
[null,6,null,null,null,null,null,null,null,null,null,null,null,null,0]
[null,7,null,null,null,null,null,null,null,null,null,null,null,null,0]
[null,8,null,null,null,null,null,null,null,null,null,null,null,null,0]
[null,9,null,null,null,null,null,null,null,null,null,null,null,null,0]
[null,10,null,null,null,null,null,null,null,null,null,null,null,null,0]
[null,11,null,null,null,null,null,null,null,null,null,null,null,null,0]
[null,12,null,null,null,null,null,null,null,null,null,null,null,null,0]
[null,13,null,null,null,null,null,null,null,null,null,null,null,null,0]
[null,14,null,null,null,null,null,null,null,null,null,null,null,null,0]
[null,15,null,null,null,null,null,null,null,null,null,null,null,null,0]
[null,16,null,null,null,null,null,null,null,null,null,null,null,null,0]
[null,17,null,null,null,null,null,null,null,null,null,null,null,null,0]
[null,18,null,null,null,null,null,null,null,null,null,null,null,null,0]
[null,19,null,null,null,null,null,null,null,null,null,null,null,null,0]
[null,20,null,null,null,null,null,null,null,null,null,null,null,null,0]
[null,21,null,null,null,null,null,null,null,null,null,null,null,null,0]
[null,22,null,null,null,null,null,null,null,null,null,null,null,null,0]
[null,23,null,null,null,null,null,null,null,null,null,null,null,null,0]
[]
[null,null,null,null,null,null,null,null,null,null,null,{"$f":"IF(J32>=60,\"CLASIFICADO A 60 Km LIBRE y 80 Km NOVICIO\",IF(J32>=40,\"CLASIFICADO A 40 Km LIBRE y 60 Km NOVICIO\",\"\"))","v":""}]
[]
[]
[]
[]
[]
[]
[]
[]
[]
[]
[]
[]
[]
[]
[]
[]
[]
[null,null,null,null,null,null,null,null,null,null,null,{"$f":"IF(J50>=60,\"CLASIFICADO A 60 Km LIBRE y 80 Km NOVICIO\",IF(J50>=40,\"CLASIFICADO A 40 Km LIBRE y 60 Km NOVICIO\",\"\"))","v":""}]

{"sheet":"PR INFANTIL","index":18,"n_rows":50,"n_cols":15,"rows_kept":50,"cut":false,"hidden":false,"merged":[[1,1,1,14],[2,1,2,14],[4,1,4,3],[4,4,4,14],[5,4,5,14]]}
[]
[null,"PUNTAJE  ACUMULADO"]
[null,"CATEGORÍA PROMOCIONAL INFANTIL"]
[]
[null,"PROMOCIONAL INFANTIL",null,null,"PUNTAJES"]
[null,null,null,null,2016]
[null,null,"CODIGO","JINETE","I CHONE","II CHONE","III CHONE","IV CHONE","V CHONE","VI CHONE","VII CHONE","VIII CHONE","IX CHONE","X CHONE","ACUMULADO"]
[null,1,null,null,null,null,null,null,null,null,null,null,null,null,{"$f":"SUM(E8:N8)","v":0}]
[null,2,null,null,null,null,null,null,null,null,null,null,null,null,0]
[null,3,null,null,null,null,null,null,null,null,null,null,null,null,0]
[null,4,null,null,null,null,null,null,null,null,null,null,null,null,0]
[null,5,null,null,null,null,null,null,null,null,null,null,null,null,{"$f":"SUM(E12:N12)","v":0}]
[null,6,null,null,null,null,null,null,null,null,null,null,null,null,0]
[null,7,null,null,null,null,null,null,null,null,null,null,null,null,0]
[null,8,null,null,null,null,null,null,null,null,null,null,null,null,0]
[null,9,null,null,null,null,null,null,null,null,null,null,null,null,0]
[null,10,null,null,null,null,null,null,null,null,null,null,null,null,0]
[null,11,null,null,null,null,null,null,null,null,null,null,null,null,0]
[null,12,null,null,null,null,null,null,null,null,null,null,null,null,0]
[null,13,null,null,null,null,null,null,null,null,null,null,null,null,0]
[null,14,null,null,null,null,null,null,null,null,null,null,null,null,0]
[null,15,null,null,null,null,null,null,null,null,null,null,null,null,0]
[null,16,null,null,null,null,null,null,null,null,null,null,null,null,0]
[null,17,null,null,null,null,null,null,null,null,null,null,null,null,0]
[null,18,null,null,null,null,null,null,null,null,null,null,null,null,0]
[null,19,null,null,null,null,null,null,null,null,null,null,null,null,0]
[null,20,null,null,null,null,null,null,null,null,null,null,null,null,0]
[null,21,null,null,null,null,null,null,null,null,null,null,null,null,0]
[null,22,null,null,null,null,null,null,null,null,null,null,null,null,0]
[null,23,null,null,null,null,null,null,null,null,null,null,null,null,0]
[]
[null,null,null,null,null,null,null,null,null,null,null,{"$f":"IF(J32>=60,\"CLASIFICADO A 60 Km LIBRE y 80 Km NOVICIO\",IF(J32>=40,\"CLASIFICADO A 40 Km LIBRE y 60 Km NOVICIO\",\"\"))","v":""}]
[]
[]
[]
[]
[]
[]
[]
[]
[]
[]
[]
[]
[]
[]
[]
[]
[]
[null,null,null,null,null,null,null,null,null,null,null,{"$f":"IF(J50>=60,\"CLASIFICADO A 60 Km LIBRE y 80 Km NOVICIO\",IF(J50>=40,\"CLASIFICADO A 40 Km LIBRE y 60 Km NOVICIO\",\"\"))","v":""}]

{"sheet":"PR ADULTO-MENOR","index":19,"n_rows":165,"n_cols":15,"rows_kept":165,"cut":false,"hidden":false,"merged":[[1,1,1,14],[2,1,2,14],[4,1,4,2],[4,4,4,14],[5,4,5,14]]}
[]
[null,"PUNTAJE  ACUMULADO"]
[null,"CATEGORÍA PROMOCIONAL ADULTO/MENOR"]
[]
[null,"BINOMIOS ABIERTA",null,null,"PUNTAJES"]
[null,null,null,null,2016]
[null,null,"MENOR","ADULTOS","I CHONE","II CHONE","III CHONE","IV CHONE","V CHONE","VI CHONE","VII CHONE","VIII CHONE","IX CHONE","X CHONE","ACUMULADO"]
[null,1,"CASTILLO DAFNE",null,null,null,null,null,null,null,null,null,null,null,64.64]
[null,2,"SERRANO OLIVIA",null,32.480000000000004,null,null,null,30.703999999999997,null,null,null,null,null,{"$f":"SUM(E9:N9)","v":63.183999999999997}]
[null,3,"JARA RAFAELA",null,null,null,null,null,32.32,null,null,null,null,null,32.32]
[null,4,"MOYA MARTINA",null,null,null,null,null,null,null,null,null,null,32,32]
[null,5,"CORREA DAVID",null,29.231999999999999,null,null,null,null,null,null,null,null,null,29.231999999999999]
[null,6,"DARQUEA EMILIO",null,null,null,null,null,29.088000000000001,null,null,null,null,null,29.088000000000001]
[null,7,"DIAZ DAIRA",null,27.608000000000001,null,null,null,null,null,null,null,null,null,27.608000000000001]
[null,8,"MOYA MILENA",null,21.112000000000002,null,null,null,null,null,null,null,null,null,21.112000000000002]
[null,9,null,null,null,null,null,null,null,null,null,null,null,null,{"$f":"SUM(E16:N16)","v":0}]
[null,10,null,null,null,null,null,null,null,null,null,null,null,null,0]
[null,11,null,null,null,null,null,null,null,null,null,null,null,null,0]
[null,12,null,null,null,null,null,null,null,null,null,null,null,null,0]
[null,13,null,null,null,null,null,null,null,null,null,null,null,null,0]
[null,14,null,null,null,null,null,null,null,null,null,null,null,null,0]
[null,15,null,null,null,null,null,null,null,null,null,null,null,null,0]
[null,16,null,null,null,null,null,null,null,null,null,null,null,null,0]
[null,17,null,null,null,null,null,null,null,null,null,null,null,null,0]
[null,18,null,null,null,null,null,null,null,null,null,null,null,null,0]
[null,19,null,null,null,null,null,null,null,null,null,null,null,null,0]
[null,20,null,null,null,null,null,null,null,null,null,null,null,null,0]
[null,21,null,null,null,null,null,null,null,null,null,null,null,null,0]
[null,22,null,null,null,null,null,null,null,null,null,null,null,null,0]
[null,23,null,null,null,null,null,null,null,null,null,null,null,null,0]
[null,24,null,null,null,null,null,null,null,null,null,null,null,null,0]
[null,25,null,null,null,null,null,null,null,null,null,null,null,null,0]
[null,26,null,null,null,null,null,null,null,null,null,null,null,null,0]
[null,27,null,null,null,null,null,null,null,null,null,null,null,null,0]
[null,28,null,null,null,null,null,null,null,null,null,null,null,null,0]
[null,29,null,null,null,null,null,null,null,null,null,null,null,null,0]
[null,30,null,null,null,null,null,null,null,null,null,null,null,null,0]
[null,31,null,null,null,null,null,null,null,null,null,null,null,null,0]
[null,32,null,null,null,null,null,null,null,null,null,null,null,null,0]
[null,33,null,null,null,null,null,null,null,null,null,null,null,null,0]
[null,34,null,null,null,null,null,null,null,null,null,null,null,null,0]
[null,35,null,null,null,null,null,null,null,null,null,null,null,null,0]
[null,36,null,null,null,null,null,null,null,null,null,null,null,null,0]
[null,37,null,null,null,null,null,null,null,null,null,null,null,null,0]
[null,38,null,null,null,null,null,null,null,null,null,null,null,null,0]
[null,39,null,null,null,null,null,null,null,null,null,null,null,null,0]
[null,40,null,null,null,null,null,null,null,null,null,null,null,null,0]
[null,41,null,null,null,null,null,null,null,null,null,null,null,null,0]
[null,42,null,null,null,null,null,null,null,null,null,null,null,null,0]
[null,43,null,null,null,null,null,null,null,null,null,null,null,null,0]
[null,44,null,null,null,null,null,null,null,null,null,null,null,null,0]
[null,45,null,null,null,null,null,null,null,null,null,null,null,null,0]
[null,46,null,null,null,null,null,null,null,null,null,null,null,null,0]
[null,47,null,null,null,null,null,null,null,null,null,null,null,null,0]
[null,48,null,null,null,null,null,null,null,null,null,null,null,null,0]
[null,49,null,null,null,null,null,null,null,null,null,null,null,null,0]
[null,50,null,null,null,null,null,null,null,null,null,null,null,null,0]
[null,51,null,null,null,null,null,null,null,null,null,null,null,null,0]
[null,52,null,null,null,null,null,null,null,null,null,null,null,null,0]
[null,53,null,null,null,null,null,null,null,null,null,null,null,null,0]
[null,54,null,null,null,null,null,null,null,null,null,null,null,null,0]
[null,55,null,null,null,null,null,null,null,null,null,null,null,null,0]
[null,56,null,null,null,null,null,null,null,null,null,null,null,null,0]
[null,57,null,null,null,null,null,null,null,null,null,null,null,null,0]
[null,58,null,null,null,null,null,null,null,null,null,null,null,null,0]
[null,59,null,null,null,null,null,null,null,null,null,null,null,null,{"$f":"SUM(E66:N66)","v":0}]
[null,60,null,null,null,null,null,null,null,null,null,null,null,null,0]
[null,61,null,null,null,null,null,null,null,null,null,null,null,null,0]
[null,62,null,null,null,null,null,null,null,null,null,null,null,null,0]
[null,63,null,null,null,null,null,null,null,null,null,null,null,null,0]
[null,64,null,null,null,null,null,null,null,null,null,null,null,null,0]
[null,65,null,null,null,null,null,null,null,null,null,null,null,null,0]
[null,66,null,null,null,null,null,null,null,null,null,null,null,null,0]
[null,67,null,null,null,null,null,null,null,null,null,null,null,null,{"$f":"SUM(E74:N74)","v":0}]
[null,68,null,null,null,null,null,null,null,null,null,null,null,null,0]
[null,69,null,null,null,null,null,null,null,null,null,null,null,null,0]
[null,70,null,null,null,null,null,null,null,null,null,null,null,null,0]
[null,71,null,null,null,null,null,null,null,null,null,null,null,null,0]
[null,72,null,null,null,null,null,null,null,null,null,null,null,null,0]
[null,73,null,null,null,null,null,null,null,null,null,null,null,null,0]
[null,74,null,null,null,null,null,null,null,null,null,null,null,null,0]
[null,75,null,null,null,null,null,null,null,null,null,null,null,null,0]
[null,76,null,null,null,null,null,null,null,null,null,null,null,null,0]
[null,77,null,null,null,null,null,null,null,null,null,null,null,null,0]
[null,78,null,null,null,null,null,null,null,null,null,null,null,null,0]
[null,79,null,null,null,null,null,null,null,null,null,null,null,null,0]
[null,80,null,null,null,null,null,null,null,null,null,null,null,null,0]
[null,81,null,null,null,null,null,null,null,null,null,null,null,null,0]
[null,82,null,null,null,null,null,null,null,null,null,null,null,null,0]
[null,83,null,null,null,null,null,null,null,null,null,null,null,null,0]
[null,84,null,null,null,null,null,null,null,null,null,null,null,null,0]
[null,85,null,null,null,null,null,null,null,null,null,null,null,null,0]
[null,86,null,null,null,null,null,null,null,null,null,null,null,null,0]
[null,87,null,null,null,null,null,null,null,null,null,null,null,null,0]
[null,88,null,null,null,null,null,null,null,null,null,null,null,null,0]
[null,89,null,null,null,null,null,null,null,null,null,null,null,null,0]
[null,90,null,null,null,null,null,null,null,null,null,null,null,null,0]
[null,91,null,null,null,null,null,null,null,null,null,null,null,null,0]
[null,92,null,null,null,null,null,null,null,null,null,null,null,null,0]
[null,93,null,null,null,null,null,null,null,null,null,null,null,null,0]
[null,94,null,null,null,null,null,null,null,null,null,null,null,null,0]
[null,95,null,null,null,null,null,null,null,null,null,null,null,null,0]
[null,96,null,null,null,null,null,null,null,null,null,null,null,null,0]
[null,97,null,null,null,null,null,null,null,null,null,null,null,null,0]
[null,98,null,null,null,null,null,null,null,null,null,null,null,null,0]
[null,99,null,null,null,null,null,null,null,null,null,null,null,null,0]
[null,100,null,null,null,null,null,null,null,null,null,null,null,null,0]
[null,101,null,null,null,null,null,null,null,null,null,null,null,null,0]
[null,102,null,null,null,null,null,null,null,null,null,null,null,null,0]
[null,103,null,null,null,null,null,null,null,null,null,null,null,null,0]
[null,104,null,null,null,null,null,null,null,null,null,null,null,null,0]
[null,105,null,null,null,null,null,null,null,null,null,null,null,null,0]
[null,106,null,null,null,null,null,null,null,null,null,null,null,null,0]
[null,107,null,null,null,null,null,null,null,null,null,null,null,null,0]
[null,108,null,null,null,null,null,null,null,null,null,null,null,null,0]
[null,109,null,null,null,null,null,null,null,null,null,null,null,null,0]
[null,110,null,null,null,null,null,null,null,null,null,null,null,null,0]
[null,111,null,null,null,null,null,null,null,null,null,null,null,null,0]
[null,112,null,null,null,null,null,null,null,null,null,null,null,null,0]
[null,113,null,null,null,null,null,null,null,null,null,null,null,null,0]
[null,114,null,null,null,null,null,null,null,null,null,null,null,null,0]
[null,115,null,null,null,null,null,null,null,null,null,null,null,null,0]
[null,116,null,null,null,null,null,null,null,null,null,null,null,null,0]
[null,117,null,null,null,null,null,null,null,null,null,null,null,null,0]
[null,118,null,null,null,null,null,null,null,null,null,null,null,null,0]
[null,119,null,null,null,null,null,null,null,null,null,null,null,null,0]
[null,120,null,null,null,null,null,null,null,null,null,null,null,null,0]
[null,121,null,null,null,null,null,null,null,null,null,null,null,null,0]
[null,122,null,null,null,null,null,null,null,null,null,null,null,null,0]
[null,123,null,null,null,null,null,null,null,null,null,null,null,null,0]
[null,124,null,null,null,null,null,null,null,null,null,null,null,null,0]
[null,125,null,null,null,null,null,null,null,null,null,null,null,null,0]
[null,126,null,null,null,null,null,null,null,null,null,null,null,null,0]
[null,127,null,null,null,null,null,null,null,null,null,null,null,null,0]
[null,128,null,null,null,null,null,null,null,null,null,null,null,null,0]
[null,129,null,null,null,null,null,null,null,null,null,null,null,null,0]
[null,130,null,null,null,null,null,null,null,null,null,null,null,null,0]
[null,131,null,null,null,null,null,null,null,null,null,null,null,null,{"$f":"SUM(E138:N138)","v":0}]
[null,132,null,null,null,null,null,null,null,null,null,null,null,null,0]
[null,133,null,null,null,null,null,null,null,null,null,null,null,null,0]
[null,134,null,null,null,null,null,null,null,null,null,null,null,null,0]
[null,135,null,null,null,null,null,null,null,null,null,null,null,null,0]
[null,136,null,null,null,null,null,null,null,null,null,null,null,null,0]
[null,137,null,null,null,null,null,null,null,null,null,null,null,null,0]
[null,138,null,null,null,null,null,null,null,null,null,null,null,null,0]
[]
[]
[]
[]
[]
[]
[]
[]
[]
[]
[]
[]
[]
[]
[]
[]
[]
[]
[]
[null,null,null,null,null,null,null,null,null,null,null,{"$f":"IF(J165>=60,\"CLASIFICADO A 60 Km LIBRE y 80 Km NOVICIO\",IF(J165>=40,\"CLASIFICADO A 40 Km LIBRE y 60 Km NOVICIO\",\"\"))","v":""}]